Workbook

Sheet CHECK
B1: ใบตรวจสอบการดำเนิน (การจัดจ้าง)
B2: ที่ | C2: รายการ | D2: จาก | E2: ถึง | F2: ว ด ป | H2: CHECK | I2: Detials ERROR (ต้องทำการแก้ไข ดังนี้) | J2: วิธีการ ต้องดำเนินาร
J3: ก่อน/เท่ากับ วดป. | K3: หลัง/เท่ากับ วดป.
B4: 1 | C4: ขอความเห็นชอบ | D4: รพ.สต. | E4: สสอ. | F4: ='เห็นชอบรวม(น1)'!H4 -> 2562-08-21 | G4: =IF(F4<=F6,1,0) -> 1 | H4: =IF(G4=1,"OK","ต้องแก้ไข") -> OK | I4: =IF(G4=0,"ต้องดำเนินการ ก่อน หรือ = รายงานการซื้อ / จ้าง","") ->  | J4: =IF(G4=0,F6,"") -> 
B5: 3 | C5: ใบเสนอราคา | D5: ผู้ค้า/ผู้รับจ้าง | E5: รพ.สต./สสอ. | F5: =ใบเสนอราคา!D5 -> 2562-08-22 | G5: =IF(F5>=F4,1,0) -> 1 | H5: =IF(G5=1,"OK","ต้องแก้ไข") -> OK | I5: =IF(G5=0,"ต้องดำเนินการ หลัง หรือ = ขอความเห็นชอบ","") ->  | K5: =IF(G5=0,F4,"") -> 
B6: 2 | C6: รายงานการซื้อ/จ้าง | D6: สสอ. | E6: ผวจ. | F6: =รายงานจัดจ้าง!H3 -> 2562-08-22 | G6: =IF(F6>=F4,1,0) -> 1 | H6: =IF(G6=1,"OK","ต้องแก้ไข") -> OK | I6: =IF(G6=0,"ต้องดำเนินการ หลัง หรือ = ขอความเห็นชอบ","") ->  | K6: =IF(G6=0,F4,"") -> 
B7: 3 | C7: คำสั่งจังหวัดบุรีรัมย์ | F7: =คำสั่ง!E19 -> 00:00:00 | G7: =IF(F7>=F6,1,0) -> 0 | H7: =IF(G7=1,"OK","ต้องแก้ไข") -> ต้องแก้ไข | I7: =IF(G7=0,"ต้องดำเนินการ หลัง หรือ = รายงานการซื้อ/จ้าง","") -> ต้องดำเนินการ หลัง หรือ = รายงานการซื้อ/จ้าง | K7: =IF(G7=0,F6,"") -> 2562-08-22
B8: 4 | C8: รายงานผลการพิจารณา | D8: สสอ. | E8: ผวจ. | F8: =การพิจารณา!H3 -> 2560-09-28 | G8: =IF(F8>=F6,1,0) -> 0 | H8: ต้องแก้ไข | I8: =IF(G8=0,"ต้องดำเนินการ หลัง หรือ = รายงานการซื้อ/จ้าง","") -> ต้องดำเนินการ หลัง หรือ = รายงานการซื้อ/จ้าง | K8: =IF(G8=0,F6,"") -> 2562-08-22
B9: 5 | C9: ประกาศผลการพิจารณา | F9: =ประกาศ!E86 -> 2560-09-28 | G9: =IF(F9>=F8,1,0) -> 1 | H9: OK | I9: =IF(G9=0,"ต้องดำเนินการ หลัง หรือ = รายงานผลการพิจารณา","") -> 
B10: 6 | C10: ใบสั่งซื้อ/จ้าง | D10: สสอ. | E10: ผู้ค้า/ผู้รับจ้าง | F10: =ใบสั่งจ้าง!F5 -> 2562-08-22 | G10: =IF(F10>=F6,1,0) -> 1 | H10: OK | I10: =IF(G10=0,"ต้องดำเนินการ หลัง หรือ = รายงานซื้อ/จ้าง","") ->  | K10: =IF(G10=0,F6,"") -> 
B11: 7 | C11: วันรับใบสั่งซื้อ / จ้าง | F11: =ใบสั่งจ้าง!F97 -> 2562-08-23 | G11: =IF(F11>=F10,1,0) -> 1 | H11: OK | I11: =IF(G11=0,"ต้องดำเนินการหลัง หรือ = ออกใบสั่งซื้อ/จ้าง","") ->  | K11: =IF(G11=0,F10,"") -> 
B12: 8 | C12: วันครบกำหนดส่งมอบ | F12: =ใบสั่งจ้าง!J85 -> 2562-10-04
B13: 9 | C13: ใบส่งมอบพัสดุ | D13: ผู้ค้า/ผู้รับจ้าง | E13: ผอ.รพ.สต. | F13: ='ใบส่งของ มอบ'!G4 -> 2562-09-30 | G13: =IF(F13<=F12,1,0) -> 1 | H13: OK | I13: =IF(G13=0,"ส่งมอบงานช้ากว่ากำหนด","") ->  | J13: =IF(G13=0,F12,"") -> 
B14: 10 | C14: ใบตรวจรับพัสดุ | D14: สสอ. | E14: ผวจ. | F14: =ใบตรวจรับ!G3 -> 2562-09-30 | G14: =IF(F14>=F13,1,0) -> 1 | H14: OK | I14: =IF(G14=0,"ต้องตรวจรับ หลัง หรือ = ส่งมอบพัสดุ","") ->  | K14: =IF(G14=0,F13,"") -> 
B15: 11 | C15: ขออนุม้ติเบิกจ่ายเงิน | D15: จนท.การเงิน | E15: ผอ.รพ.สต. | F15: =เบิกจ่ายเงินรวม!I3 -> 2562-10-01 | G15: =IF(F15>=F14,1,0) -> 1 | H15: OK | I15: =IF(G15=0,"ต้องดำเนินการหลัง หรือ = ตรวจรับพัสดุ","") ->  | K15: =IF(G15=0,F14,"") -> 

Sheet DATABASE
B1: ข้อมูลทั่วไป (การจัดจ้าง)
B2: หน่วยงานบังคับบัญชา | C2: สำนักงานสาธารณสุขอำเภอหนองหงส์ ถ.ราษฎร์บำรุง จังหวัดบุรีรัมย์ | D2: โทร. 0 4466 9276
B3: ที่หนังสือ สสอ. | C3: บร 1332.1/
B4: หน่วยงานบริหาร | C4: สำนักงานสาธารณสุขอำเภอหนองหงส์ | D4: อำเภอหนองหงส์ จังหวัดบุรีรัมย์
B5: ที่อยู่ | C5: ที่อยู่ หมู่ที่ 14 ถนนราษฎร์บำรุง ตำบลสระแก้ว 31240 | D5: โทร. 0 4466 9276, 0 4466 9020
B6: หัวหน้าหน่วยงาน | C6: นายประหยัด นงประโคน | D6: สาธารณสุขอำเภอหนองหงส์
B7: หัวหน้าเจ้าหน้าที่ | C7: นางจุรีพร บัวลอย | D7: นักวิชาการสาธารณสุข ชำนาญการ
B8: เลขคำสั่ง สป. การอนุมัติจ่ายเงิน | C8: ปฏิบัติตามคำสั่ง สป. ที่ 2999/2559 ลว. 30 กันยายน 2559
B9: คำสั่งจังหวัดบุรีรัมย์ | C9: ที่ /2560
B10: คำสั่ง มอบอำนาจพัสดุ | C10: คำสั่งจังหวัดบุรีรัมย์ ที่ 27631/2559 ลงวันที่ 24 สิงหาคม 2560
B11: เจ้าหน้าที่ | C11: นางวรรณเพ็ญ วศินไพบูลย์วงศ์ | D11: เจ้าพนักงานสาธารณสุข
B12: เจ้าหน้าที่การเงิน | C12: นางสาวกนกรัตน์ พรมมา | D12: เจ้าพนักงานสาธารณสุข
B13: ที่หนังสือ รพ.สต. | C13: บร 1332.1.4/ | D13: นายดำรงค์ สีระสูงเนิน | E13: <<<< ชื่อ ผอ.รพ.สต.
B14: ผู้อนุมัติจ่ายเงิน | C14: นายดำรงค์ สีระสูงเนิน | D14: ผู้อำนวยการโรงพยาบาลส่งเสริมสุขภาพตำบลบ้านกระเบื้องน้อย
B15: หน่วยงานที่ขออนุมัติ | C15: โรงพยาบาลส่งเสริมสุขภาพตำบลบ้านกระเบื้องน้อย | D15: อำเภอหนองหงส์ จังหวัดบุรีรัมย์
B16: ประธานกรรมการ | C16: นายสมยศ นงประโคน | D16: เจ้าพนักงานสาธารณสุข อาวุโส
B17: กรรมการ
B18: กรรมการ
B19: ชื่อผู้รับจ้าง | C19: หจก. เอกสารซีพี | D19: .........................................................
B20: ที่อยู่ผู้รับจ้าง | C20: 95/10-11 ถ.อินจันทร์รรงค์ ต.ในเมือง อ.เมือง จ.บุรีรัมย์ | D20: โทรศัพท์ 0 4461 4005
B21: เลขผู้เสียภาษี | C21: 313555000044 | D21: หลัก
B22: เลขที่บัญชีเงินฝากธนาคาร | D22: 12 หลัก
B23: ชื่อบัญชี
B24: ธนาคาร
B25: เลขที่โครงการใน e-GP | C25: -
B26: เลขคุมสัญญา | C26: -

Sheet CG (hidden)
B2: ประจำเดือน | C2: 2560-12-01 | D2: =MONTH(C2) -> 12 | E2: =YEAR(C2) -> 2560 | F2: =D2 -> 12 | I2: กลุ่มที่ | K2: ประเภทผู้สูงอายุที่มีภาวะพึ่งพิง
B3: ผู้ช่วยเหลือดูแลผู้สูงอายุที่มีภาวะพึ่งพิง (Care Giver) | C3: 300 | D3: บาท | E3: 9 | F3: คน | G3: =C3*E3 -> 2700 | H3: บาท | I3: 1 | K3: เคลื่อนไหวได้บ้างและอาจมีปัญหาการกิน หรือขับถ่ายแต่ไม่มีภาวะสับสนทางสมอง
C4: 600 | D4: บาท | E4: 2 | F4: คน | G4: =C4*E4 -> 1200 | H4: บาท | I4: 2 | K4: เหมือนกลุ่มที่ 1 แต่มีภาวะสับสนทางสมอง
D5: บาท | F5: คน | G5: =C5*E5 -> 0 | H5: บาท | I5: 3 | K5: เคลื่อนไหวเองไม่ได้และอาจมีปัญหาการกิน หรือขับถ่ายหรือมีอาการเจ็บป่วยรุนแรง
D6: บาท | F6: คน | G6: =C6*E6 -> 0 | H6: บาท | I6: 4 | K6: เหมือนกลุ่มที่ 3 และมีอาการ เจ็บป่วยรุนแรง หรืออยู่ในระยะท้ายของชีวิต
D7: บาท | F7: คน | G7: =C7*E7 -> 0 | H7: บาท | R7: จ้างตั้งแต่เดือน | S7: ธันวาคม | T7: 2560 | U7: ถึง | V7: กันยายน | W7: 2561
D8: รวม | E8: =SUM(E3:E7) -> 11 | F8: รวมเงิน | G8: =SUM(G3:G7) -> 3900 | H8: บาท | S8: รวมจ้าง (ด.)
A9: 1 | B9: 2 | C9: 3 | D9: 4 | E9: 5 | F9: 6 | G9: 7 | H9: 8 | I9: 9 | J9: 10 | K9: 11 | L9: 12 | M9: 13 | N9: 14 | O9: 15 | P9: 16 | Q9: 17 | R9: 18 | S9: 19 | T9: 20 | U9: 21
A10: ที่ | B10: ชื่อ - สกุล | C10: เลขที่ | D10: หมู่ที่ | E10: หมายเลขบัตรประชาชน | F10: จำนวนเงิน | G10: เลข ส่ง สสอ | H10: ตกลงจ้าง ที่ | I10: ลงวันที่ | J10: คน/ที่อยู่/จำนวนเงิน | K10: คน/ที่อยู่/จำนวนเงิน | L10: ต. | M10: อ. | N10: จ. | O10: รหัส | P10: ที่อยู่ | Q10: ที่อยู่ | R10: จำนวน Case | S10: 10
A11: 1 | B11: นางน้อย ปานเพ็ชร | C11: 133 | D11: 6 | E11: 3311400187879 | F11: 600 | G11: 1000 | H11: 46/2560 | I11: 2560-12-01 | J11: =IF(B11="","",B11&" "&$C$10&" "&C11&" "&$D$10&" "&D11&" "&$E$10&" "&E11) -> นางน้อย ปานเพ็ชร เลขที่ 133 หมู่ที่ 6 หมายเลขบัตรประชาชน 3311400187879 | K11: นางน้อย ปานเพ็ชร เลขที่ 133 หมู่ที่ 6 หมายเลขบัตรประชาชน 3311400187879 | L11: หนองชัยศรี | M11: หนองหงส์ | N11: บุรีรัมย์ | O11: 31240 | P11: =IF(B11="","",$C$10&" "&C11&" "&$D$10&" "&D11&" "&$L$10&" "&L11&" "&$M$10&" "&M11&" "&$N$10&" "&N11&" "&O11) -> เลขที่ 133 หมู่ที่ 6 ต. หนองชัยศรี อ. หนองหงส์ จ. บุรีรัมย์ 31240 | Q11: เลขที่ 133 หมู่ที่ 6 ต. หนองชัยศรี อ. หนองหงส์ จ. บุรีรัมย์ 31240 | R11: =COUNTIF(#REF!,A11) ->  | S11: =$S$10*F11 -> 6000
A12: 2 | B12: นางสาวกาญจนา บุญเต็ม | C12: 12 | D12: 11 | E12: 1311400010905 | F12: 600 | G12: =IF(B12="","",G11+1) -> 1001 | H12: 47/2560 | I12: =IF(B12="","",$I$11) -> 2560-12-01 | J12: =IF(B12="","",B12&" "&$C$10&" "&C12&" "&$D$10&" "&D12&" "&$E$10&" "&E12) -> นางสาวกาญจนา บุญเต็ม เลขที่ 12 หมู่ที่ 11 หมายเลขบัตรประชาชน 1311400010905 | K12: นางสาวกาญจนา บุญเต็ม เลขที่ 12 หมู่ที่ 11 หมายเลขบัตรประชาชน 1311400010905 | L12: หนองชัยศรี | M12: หนองหงส์ | N12: บุรีรัมย์ | O12: 31240 | P12: =IF(B12="","",$C$10&" "&C12&" "&$D$10&" "&D12&" "&$L$10&" "&L12&" "&$M$10&" "&M12&" "&$N$10&" "&N12&" "&O12) -> เลขที่ 12 หมู่ที่ 11 ต. หนองชัยศรี อ. หนองหงส์ จ. บุรีรัมย์ 31240 | Q12: เลขที่ 12 หมู่ที่ 11 ต. หนองชัยศรี อ. หนองหงส์ จ. บุรีรัมย์ 31240 | R12: =COUNTIF(#REF!,A12) ->  | S12: =$S$10*F12 -> 6000
A13: 3 | B13: นางละเอียด พันธ์มี | C13: 95 | D13: 1 | E13: 3311400121754 | F13: 300 | G13: 1002 | H13: 48/2560 | I13: =IF(B13="","",$I$11) -> 2560-12-01 | J13: นางละเอียด พันธ์มี เลขที่ 95 หมู่ที่ 1 หมายเลขบัตรประชาชน 3311400121754 | K13: นางละเอียด พันธ์มี เลขที่ 95 หมู่ที่ 1 หมายเลขบัตรประชาชน 3311400121754 | L13: หนองชัยศรี | M13: หนองหงส์ | N13: บุรีรัมย์ | O13: 31240 | P13: เลขที่ 95 หมู่ที่ 1 ต. หนองชัยศรี อ. หนองหงส์ จ. บุรีรัมย์ 31240 | Q13: เลขที่ 95 หมู่ที่ 1 ต. หนองชัยศรี อ. หนองหงส์ จ. บุรีรัมย์ 31240 | R13: =COUNTIF(#REF!,A13) ->  | S13: 3000
A14: 4 | B14: นางคำแปลง สารัมย์ | C14: 84 | D14: 2 | E14: 3311400046213 | F14: 300 | G14: 1003 | I14: 2560-12-01 | J14: นางคำแปลง สารัมย์ เลขที่ 84 หมู่ที่ 2 หมายเลขบัตรประชาชน 3311400046213 | K14: นางคำแปลง สารัมย์ เลขที่ 84 หมู่ที่ 2 หมายเลขบัตรประชาชน 3311400046213 | L14: หนองชัยศรี | M14: หนองหงส์ | N14: บุรีรัมย์ | O14: 31240 | P14: เลขที่ 84 หมู่ที่ 2 ต. หนองชัยศรี อ. หนองหงส์ จ. บุรีรัมย์ 31240 | Q14: เลขที่ 84 หมู่ที่ 2 ต. หนองชัยศรี อ. หนองหงส์ จ. บุรีรัมย์ 31240 | R14: =COUNTIF(#REF!,A14) ->  | S14: 3000
A15: 5 | B15: นางลำไพ โสนาชัย | C15: 39 | D15: 4 | E15: 3311400148652 | F15: 300 | G15: 1004 | I15: 2560-12-01 | J15: นางลำไพ โสนาชัย เลขที่ 39 หมู่ที่ 4 หมายเลขบัตรประชาชน 3311400148652 | K15: นางลำไพ โสนาชัย เลขที่ 39 หมู่ที่ 4 หมายเลขบัตรประชาชน 3311400148652 | L15: หนองชัยศรี | M15: หนองหงส์ | N15: บุรีรัมย์ | O15: 31240 | P15: เลขที่ 39 หมู่ที่ 4 ต. หนองชัยศรี อ. หนองหงส์ จ. บุรีรัมย์ 31240 | Q15: เลขที่ 39 หมู่ที่ 4 ต. หนองชัยศรี อ. หนองหงส์ จ. บุรีรัมย์ 31240 | R15: =COUNTIF(#REF!,A15) ->  | S15: 3000
A16: 6 | B16: นางอำพร สาวงศ์ | C16: 55 | D16: 5 | E16: 3311400182338 | F16: 300 | G16: 1005 | I16: 2560-12-01 | J16: นางอำพร สาวงศ์ เลขที่ 55 หมู่ที่ 5 หมายเลขบัตรประชาชน 3311400182338 | K16: นางอำพร สาวงศ์ เลขที่ 55 หมู่ที่ 5 หมายเลขบัตรประชาชน 3311400182338 | L16: หนองชัยศรี | M16: หนองหงส์ | N16: บุรีรัมย์ | O16: 31240 | P16: เลขที่ 55 หมู่ที่ 5 ต. หนองชัยศรี อ. หนองหงส์ จ. บุรีรัมย์ 31240 | Q16: เลขที่ 55 หมู่ที่ 5 ต. หนองชัยศรี อ. หนองหงส์ จ. บุรีรัมย์ 31240 | R16: =COUNTIF(#REF!,A16) ->  | S16: 3000
A17: 7 | B17: นางฉวี มาศคำมี | C17: 72 | D17: 7 | E17: 3311400191728 | F17: 300 | G17: 1006 | I17: 2560-12-01 | J17: นางฉวี มาศคำมี เลขที่ 72 หมู่ที่ 7 หมายเลขบัตรประชาชน 3311400191728 | K17: นางฉวี มาศคำมี เลขที่ 72 หมู่ที่ 7 หมายเลขบัตรประชาชน 3311400191728 | L17: หนองชัยศรี | M17: หนองหงส์ | N17: บุรีรัมย์ | O17: 31240 | P17: เลขที่ 72 หมู่ที่ 7 ต. หนองชัยศรี อ. หนองหงส์ จ. บุรีรัมย์ 31240 | Q17: เลขที่ 72 หมู่ที่ 7 ต. หนองชัยศรี อ. หนองหงส์ จ. บุรีรัมย์ 31240 | R17: =COUNTIF(#REF!,A17) ->  | S17: 3000
A18: 8 | B18: นางอุไร อัครจักร | C18: 114 | D18: 8 | E18: 3311400205311 | F18: 300 | G18: 1007 | I18: 2560-12-01 | J18: นางอุไร อัครจักร เลขที่ 114 หมู่ที่ 8 หมายเลขบัตรประชาชน 3311400205311 | K18: นางอุไร อัครจักร เลขที่ 114 หมู่ที่ 8 หมายเลขบัตรประชาชน 3311400205311 | L18: หนองชัยศรี | M18: หนองหงส์ | N18: บุรีรัมย์ | O18: 31240 | P18: เลขที่ 114 หมู่ที่ 8 ต. หนองชัยศรี อ. หนองหงส์ จ. บุรีรัมย์ 31240 | Q18: เลขที่ 114 หมู่ที่ 8 ต. หนองชัยศรี อ. หนองหงส์ จ. บุรีรัมย์ 31240 | R18: =COUNTIF(#REF!,A18) ->  | S18: 3000
A19: 9 | B19: นางประยูร กรมจรรยา | C19: 30 | D19: 9 | E19: 3311400048429 | F19: 300 | G19: 1008 | I19: 2560-12-01 | J19: นางประยูร กรมจรรยา เลขที่ 30 หมู่ที่ 9 หมายเลขบัตรประชาชน 3311400048429 | K19: นางประยูร กรมจรรยา เลขที่ 30 หมู่ที่ 9 หมายเลขบัตรประชาชน 3311400048429 | L19: หนองชัยศรี | M19: หนองหงส์ | N19: บุรีรัมย์ | O19: 31240 | P19: เลขที่ 30 หมู่ที่ 9 ต. หนองชัยศรี อ. หนองหงส์ จ. บุรีรัมย์ 31240 | Q19: เลขที่ 30 หมู่ที่ 9 ต. หนองชัยศรี อ. หนองหงส์ จ. บุรีรัมย์ 31240 | R19: =COUNTIF(#REF!,A19) ->  | S19: 3000
A20: 10 | B20: นางกัญญาณี สร้างนอก | C20: 2 | D20: 10 | E20: 3311400122068 | F20: 300 | G20: 1009 | I20: 2560-12-01 | J20: นางกัญญาณี สร้างนอก เลขที่ 2 หมู่ที่ 10 หมายเลขบัตรประชาชน 3311400122068 | K20: นางกัญญาณี สร้างนอก เลขที่ 2 หมู่ที่ 10 หมายเลขบัตรประชาชน 3311400122068 | L20: หนองชัยศรี | M20: หนองหงส์ | N20: บุรีรัมย์ | O20: 31240 | P20: เลขที่ 2 หมู่ที่ 10 ต. หนองชัยศรี อ. หนองหงส์ จ. บุรีรัมย์ 31240 | Q20: เลขที่ 2 หมู่ที่ 10 ต. หนองชัยศรี อ. หนองหงส์ จ. บุรีรัมย์ 31240 | R20: =COUNTIF(#REF!,A20) ->  | S20: 3000
A21: 11 | B21: นางพรรณี ศรีเมือง | C21: 8 | D21: 14 | E21: 3311400050792 | F21: 300 | G21: 1010 | I21: 2560-12-01 | J21: นางพรรณี ศรีเมือง เลขที่ 8 หมู่ที่ 14 หมายเลขบัตรประชาชน 3311400050792 | K21: นางพรรณี ศรีเมือง เลขที่ 8 หมู่ที่ 14 หมายเลขบัตรประชาชน 3311400050792 | L21: หนองชัยศรี | M21: หนองหงส์ | N21: บุรีรัมย์ | O21: 31240 | P21: เลขที่ 8 หมู่ที่ 14 ต. หนองชัยศรี อ. หนองหงส์ จ. บุรีรัมย์ 31240 | Q21: เลขที่ 8 หมู่ที่ 14 ต. หนองชัยศรี อ. หนองหงส์ จ. บุรีรัมย์ 31240 | R21: =COUNTIF(#REF!,A21) ->  | S21: 3000
H22: =IF(B22="","",H21+1) ->  | R22: =COUNTIF(#REF!,A22) ->  | S22: 0
R23: =COUNTIF(#REF!,A23) ->  | S23: 0
R24: =COUNTIF(#REF!,A24) ->  | S24: 0
R25: =COUNTIF(#REF!,A25) ->  | S25: 0
R26: =COUNTIF(#REF!,A26) ->  | S26: 0
R27: =COUNTIF(#REF!,A27) ->  | S27: 0
R28: =COUNTIF(#REF!,A28) ->  | S28: 0
R29: =COUNTIF(#REF!,A29) ->  | S29: 0
R30: =COUNTIF(#REF!,A30) ->  | S30: 0
R31: =COUNTIF(#REF!,A31) ->  | S31: 0
R32: =COUNTIF(#REF!,A32) ->  | S32: 0
R33: =COUNTIF(#REF!,A33) ->  | S33: 0
R34: =COUNTIF(#REF!,A34) ->  | S34: 0
R35: =COUNTIF(#REF!,A35) ->  | S35: 0
R36: =COUNTIF(#REF!,A36) ->  | S36: 0
R37: =COUNTIF(#REF!,A37) ->  | S37: 0
R38: =COUNTIF(#REF!,A38) ->  | S38: 0
R39: =COUNTIF(#REF!,A39) ->  | S39: 0
R40: =COUNTIF(#REF!,A40) ->  | S40: 0

Sheet เห็นชอบรวม(น1)
B2: บันทึกข้อความ
B3: ส่วนราชการ | E3: =DATABASE!C15&" "&DATABASE!D15 -> โรงพยาบาลส่งเสริมสุขภาพตำบลบ้านกระเบื้องน้อย อำเภอหนองหงส์ จังหวัดบุรีรัมย์
B4: ที่ | C4: =DATABASE!C13 -> บร 1332.1.4/ | E4: 166 | G4: วันที่ | H4: 2562-08-21
B5: เรื่อง | C5: ถ่ายเอกสารงานราชการและเข้าเล่ม
B6: เรียน | C6: =DATABASE!D6 -> สาธารณสุขอำเภอหนองหงส์
E7: ความเป็นมา
B8: ด้วย สำนักโรคไม่ติดต่อ กรมควบคุมโรค ได้เชิญส่งผลงานการดำเนินงานทีมป้องกันการบาดเจ็บทางถนนระดับตำบล (RTI team) และทีมป้องกันเด็กจมน้ำ ประจำปี 2562 โดย สสจ.บุรีรัมย์ได้เชิญนำเสนอผลงานการดำเนินงาน โดยเตรียมเอกสารรูปเล่มพร้อมไฟล์นำเสนอ ในวันที่ 23 สิงหาคม 2562นั้น และส่งรูปเล่มทั้ง 2 กิจกรรมภายในวันที่ 30 กันยายน 2562 นั้น ในการนี้ โรงพยาบาลส่งเสริมสุขภาพตำบลบ้านกระเบื้องน้อย ต.หนองชัยศรี ได้ส่งผลงานนำเสนอการป้องกันบาดเจ็บทางถนน ระดับ Excellent เป็นปีที่ 2 และทีมป้องกันเด็กจมน้ำ ระดับทอง ดังนั้น เพื่อให้การดำเนินงานเป็นไปด้วยความเรียบร้อย มีประสิทธิภาพ จึงใคร่ขอจัดจ้างถ่ายเอกสารเพื่อใช้ในงานราชการต่อไป
E9: ข้อพิจารณา
E10: =E3&H3& "มีความประสงค์" -> โรงพยาบาลส่งเสริมสุขภาพตำบลบ้านกระเบื้องน้อย อำเภอหนองหงส์ จังหวัดบุรีรัมย์มีความประสงค์
B11: =C5& " โดยใช้งบเงินบำรุงของหน่วยงาน รพ.สต.บ้านกระเบื้องน้อย" -> ถ่ายเอกสารงานราชการและเข้าเล่ม โดยใช้งบเงินบำรุงของหน่วยงาน รพ.สต.บ้านกระเบื้องน้อย
B12: รายละเอียดดังนี้
D13: =IF(แนบท้ายรายงาน2!B6="","",แนบท้ายรายงาน2!B6) -> 1 | E13: =แนบท้ายรายงาน2!C6&" จำนวน "&แนบท้ายรายงาน2!D6&" "&แนบท้ายรายงาน2!E6&" ๆ ละ "&แนบท้ายรายงาน2!H6&" บาท" -> ค่าถ่ายเอกสารสี และขาวดำ จำนวน 98 หน้า พร้อมเข้าเล่ม(ส่งเขต) จำนวน 1 เล่ม ๆ ละ 700 บาท | K13: =IF(E13="","","เลือกปริ้น") -> เลือกปริ้น
D14: 2 | E14: =แนบท้ายรายงาน2!C7&" จำนวน "&แนบท้ายรายงาน2!D7&" "&แนบท้ายรายงาน2!E7&" ๆ ละ "&แนบท้ายรายงาน2!H7&" บาท" -> ค่าถ่ายเอกสารสี และขาวดำ จำนวน 141 หน้า พร้อมเข้าเล่ม (ส่งเขต) จำนวน 1 เล่ม ๆ ละ 1018 บาท | K14: =IF(E14="","","เลือกปริ้น") -> เลือกปริ้น
D15: 3 | E15: =แนบท้ายรายงาน2!C8&" จำนวน "&แนบท้ายรายงาน2!D8&" "&แนบท้ายรายงาน2!E8&" ๆ ละ "&แนบท้ายรายงาน2!H8&" บาท" -> ค่าถ่ายเอกสารขาวดำ จำนวน 98 หน้า พร้อมเข้าเล่ม(นำเสนอ สสจ.) จำนวน 2 เล่ม ๆ ละ 141 บาท | K15: เลือกปริ้น
D16: =IF(#REF!="","",#REF!) ->  | E16: =IF(D16="","",#REF!) ->  | G16: =IF(D16="","",L16&" "&M16&" "&N16&"ๆ ละ"&" "&O16&" "&P16&" รวมเป็นเงิน") ->  | I16: =IF(D16="","",#REF!*#REF!) -> 
D17: =IF(#REF!="","",#REF!) ->  | E17: =IF(D17="","",#REF!) ->  | I17: =IF(D17="","",#REF!*#REF!) ->  | L17: =IF(D17="","","จำนวน") ->  | M17: =IF(D17="","",#REF!) ->  | N17: =IF(D17="","",#REF!) ->  | O17: =IF(D17="","",#REF!) ->  | P17: =IF(D17="","","บาท") -> 
D18: =IF(#REF!="","",#REF!) ->  | E18: =IF(D18="","",#REF!) ->  | I18: =IF(D18="","",#REF!*#REF!) ->  | M18: =IF(D18="","",#REF!) ->  | N18: =IF(D18="","",#REF!) ->  | O18: =IF(D18="","",#REF!) -> 
D19: =IF(#REF!="","",#REF!) ->  | E19: =IF(D19="","",#REF!) ->  | I19: =IF(D19="","",#REF!*#REF!) ->  | M19: =IF(D19="","",#REF!) ->  | N19: =IF(D19="","",#REF!) ->  | O19: =IF(D19="","",#REF!) -> 
D20: =IF(#REF!="","",#REF!) ->  | E20: =IF(D20="","",#REF!) ->  | I20: =IF(D20="","",#REF!*#REF!) ->  | M20: =IF(D20="","",#REF!) ->  | N20: =IF(D20="","",#REF!) ->  | O20: =IF(D20="","",#REF!) -> 
D21: =IF(#REF!="","",#REF!) ->  | E21: =IF(D21="","",#REF!) ->  | I21: =IF(D21="","",#REF!*#REF!) ->  | M21: =IF(D21="","",#REF!) ->  | N21: =IF(D21="","",#REF!) ->  | O21: =IF(D21="","",#REF!) -> 
D22: =IF(#REF!="","",#REF!) ->  | E22: =IF(D22="","",#REF!) ->  | I22: =IF(D22="","",#REF!*#REF!) ->  | M22: =IF(D22="","",#REF!) ->  | N22: =IF(D22="","",#REF!) ->  | O22: =IF(D22="","",#REF!) -> 
D23: =IF(#REF!="","",#REF!) ->  | E23: =IF(D23="","",#REF!) ->  | G23: =IF(D23="","",L23&" "&M23&" "&N23&"ๆ ละ"&" "&O23&" "&P23&" รวมเป็นเงิน") ->  | I23: =IF(D23="","",#REF!*#REF!) ->  | M23: =IF(D23="","",#REF!) ->  | N23: =IF(D23="","",#REF!) ->  | O23: =IF(D23="","",#REF!) -> 
D24: =IF(#REF!="","",#REF!) ->  | E24: =IF(D24="","",#REF!) ->  | I24: =IF(D24="","",#REF!*#REF!) ->  | M24: =IF(D24="","",#REF!) ->  | N24: =IF(D24="","",#REF!) ->  | O24: =IF(D24="","",#REF!) -> 
D25: =IF(#REF!="","",#REF!) ->  | E25: =IF(D25="","",#REF!) ->  | I25: =IF(D25="","",#REF!*#REF!) ->  | L25: =IF(D25="","","จำนวน") ->  | M25: =IF(D25="","",#REF!) ->  | N25: =IF(D25="","",#REF!) ->  | O25: =IF(D25="","",#REF!) ->  | P25: =IF(D25="","","บาท") -> 
D26: =IF(#REF!="","",#REF!) ->  | E26: =IF(D26="","",#REF!) ->  | I26: =IF(D26="","",#REF!*#REF!) ->  | M26: =IF(D26="","",#REF!) ->  | N26: =IF(D26="","",#REF!) ->  | O26: =IF(D26="","",#REF!) -> 
D27: =IF(#REF!="","",#REF!) ->  | E27: =IF(D27="","",#REF!) ->  | I27: =IF(D27="","",#REF!*#REF!) ->  | M27: =IF(D27="","",#REF!) ->  | N27: =IF(D27="","",#REF!) ->  | O27: =IF(D27="","",#REF!) -> 
D28: =IF(#REF!="","",#REF!) ->  | E28: =IF(D28="","",#REF!) ->  | I28: =IF(D28="","",#REF!*#REF!) ->  | M28: =IF(D28="","",#REF!) ->  | N28: =IF(D28="","",#REF!) ->  | O28: =IF(D28="","",#REF!) -> 
D29: =IF(#REF!="","",#REF!) ->  | E29: =IF(D29="","",#REF!) ->  | I29: =IF(D29="","",#REF!*#REF!) ->  | M29: =IF(D29="","",#REF!) ->  | N29: =IF(D29="","",#REF!) ->  | O29: =IF(D29="","",#REF!) -> 
D30: =IF(#REF!="","",#REF!) ->  | E30: =IF(D30="","",#REF!) ->  | I30: =IF(D30="","",#REF!*#REF!) ->  | M30: =IF(D30="","",#REF!) ->  | N30: =IF(D30="","",#REF!) ->  | O30: =IF(D30="","",#REF!) -> 
D31: =IF(#REF!="","",#REF!) ->  | E31: =IF(D31="","",#REF!) ->  | I31: =IF(D31="","",#REF!*#REF!) ->  | M31: =IF(D31="","",#REF!) ->  | N31: =IF(D31="","",#REF!) ->  | O31: =IF(D31="","",#REF!) -> 
D32: =IF(#REF!="","",#REF!) ->  | E32: =IF(D32="","",#REF!) ->  | I32: =IF(D32="","",#REF!*#REF!) ->  | M32: =IF(D32="","",#REF!) ->  | N32: =IF(D32="","",#REF!) ->  | O32: =IF(D32="","",#REF!) -> 
D33: =IF(#REF!="","",#REF!) ->  | E33: =IF(D33="","",#REF!) ->  | I33: =IF(D33="","",#REF!*#REF!) ->  | M33: =IF(D33="","",#REF!) ->  | N33: =IF(D33="","",#REF!) ->  | O33: =IF(D33="","",#REF!) -> 
D34: =IF(#REF!="","",#REF!) ->  | E34: =IF(D34="","",#REF!) ->  | I34: =IF(D34="","",#REF!*#REF!) ->  | M34: =IF(D34="","",#REF!) ->  | N34: =IF(D34="","",#REF!) ->  | O34: =IF(D34="","",#REF!) -> 
D35: =IF(#REF!="","",#REF!) ->  | E35: =IF(D35="","",#REF!) ->  | I35: =IF(D35="","",#REF!*#REF!) ->  | M35: =IF(D35="","",#REF!) ->  | N35: =IF(D35="","",#REF!) ->  | O35: =IF(D35="","",#REF!) -> 
D36: =IF(#REF!="","",#REF!) ->  | E36: =IF(D36="","",#REF!) ->  | I36: =IF(D36="","",#REF!*#REF!) ->  | M36: =IF(D36="","",#REF!) ->  | N36: =IF(D36="","",#REF!) ->  | O36: =IF(D36="","",#REF!) -> 
D37: =IF(#REF!="","",#REF!) ->  | E37: =IF(D37="","",#REF!) ->  | I37: =IF(D37="","",#REF!*#REF!) ->  | M37: =IF(D37="","",#REF!) ->  | N37: =IF(D37="","",#REF!) ->  | O37: =IF(D37="","",#REF!) -> 
D38: =IF(#REF!="","",#REF!) ->  | E38: =IF(D38="","",#REF!) ->  | I38: =IF(D38="","",#REF!*#REF!) ->  | M38: =IF(D38="","",#REF!) ->  | N38: =IF(D38="","",#REF!) ->  | O38: =IF(D38="","",#REF!) -> 
D39: =IF(#REF!="","",#REF!) ->  | E39: =IF(D39="","",#REF!) ->  | I39: =IF(D39="","",#REF!*#REF!) ->  | M39: =IF(D39="","",#REF!) ->  | N39: =IF(D39="","",#REF!) ->  | O39: =IF(D39="","",#REF!) -> 
D40: =IF(#REF!="","",#REF!) ->  | E40: =IF(D40="","",#REF!) ->  | I40: =IF(D40="","",#REF!*#REF!) ->  | M40: =IF(D40="","",#REF!) ->  | N40: =IF(D40="","",#REF!) ->  | O40: =IF(D40="","",#REF!) -> 
D41: =IF(#REF!="","",#REF!) ->  | E41: =IF(D41="","",#REF!) ->  | I41: =IF(D41="","",#REF!*#REF!) ->  | M41: =IF(D41="","",#REF!) ->  | N41: =IF(D41="","",#REF!) ->  | O41: =IF(D41="","",#REF!) -> 
D42: =IF(#REF!="","",#REF!) ->  | E42: =IF(D42="","",#REF!) ->  | I42: =IF(D42="","",#REF!*#REF!) ->  | M42: =IF(D42="","",#REF!) ->  | N42: =IF(D42="","",#REF!) ->  | O42: =IF(D42="","",#REF!) -> 
D43: =IF(#REF!="","",#REF!) ->  | E43: =IF(D43="","",#REF!) ->  | I43: =IF(D43="","",#REF!*#REF!) ->  | M43: =IF(D43="","",#REF!) ->  | N43: =IF(D43="","",#REF!) ->  | O43: =IF(D43="","",#REF!) -> 
D44: =IF(#REF!="","",#REF!) ->  | E44: =IF(D44="","",#REF!) ->  | I44: =IF(D44="","",#REF!*#REF!) ->  | M44: =IF(D44="","",#REF!) ->  | N44: =IF(D44="","",#REF!) ->  | O44: =IF(D44="","",#REF!) -> 
D45: =IF(#REF!="","",#REF!) ->  | E45: =IF(D45="","",#REF!) ->  | I45: =IF(D45="","",#REF!*#REF!) ->  | M45: =IF(D45="","",#REF!) ->  | N45: =IF(D45="","",#REF!) ->  | O45: =IF(D45="","",#REF!) -> 
D46: =IF(#REF!="","",#REF!) ->  | E46: =IF(D46="","",#REF!) ->  | I46: =IF(D46="","",#REF!*#REF!) ->  | M46: =IF(D46="","",#REF!) ->  | N46: =IF(D46="","",#REF!) ->  | O46: =IF(D46="","",#REF!) -> 
D47: =IF(#REF!="","",#REF!) ->  | E47: =IF(D47="","",#REF!) ->  | I47: =IF(D47="","",#REF!*#REF!) ->  | M47: =IF(D47="","",#REF!) ->  | N47: =IF(D47="","",#REF!) ->  | O47: =IF(D47="","",#REF!) -> 
D48: =IF(#REF!="","",#REF!) ->  | E48: =IF(D48="","",#REF!) ->  | I48: =IF(D48="","",#REF!*#REF!) ->  | M48: =IF(D48="","",#REF!) ->  | N48: =IF(D48="","",#REF!) ->  | O48: =IF(D48="","",#REF!) -> 
D49: =IF(#REF!="","",#REF!) ->  | E49: =IF(D49="","",#REF!) ->  | I49: =IF(D49="","",#REF!*#REF!) ->  | M49: =IF(D49="","",#REF!) ->  | N49: =IF(D49="","",#REF!) ->  | O49: =IF(D49="","",#REF!) -> 
D50: =IF(#REF!="","",#REF!) ->  | E50: =IF(D50="","",#REF!) ->  | I50: =IF(D50="","",#REF!*#REF!) ->  | M50: =IF(D50="","",#REF!) ->  | N50: =IF(D50="","",#REF!) ->  | O50: =IF(D50="","",#REF!) -> 
D51: =IF(#REF!="","",#REF!) ->  | E51: =IF(D51="","",#REF!) ->  | I51: =IF(D51="","",#REF!*#REF!) ->  | M51: =IF(D51="","",#REF!) ->  | N51: =IF(D51="","",#REF!) ->  | O51: =IF(D51="","",#REF!) -> 
D52: =IF(#REF!="","",#REF!) ->  | E52: =IF(D52="","",#REF!) ->  | I52: =IF(D52="","",#REF!*#REF!) ->  | M52: =IF(D52="","",#REF!) ->  | N52: =IF(D52="","",#REF!) ->  | O52: =IF(D52="","",#REF!) -> 
D53: =IF(#REF!="","",#REF!) ->  | E53: =IF(D53="","",#REF!) ->  | I53: =IF(D53="","",#REF!*#REF!) ->  | M53: =IF(D53="","",#REF!) ->  | N53: =IF(D53="","",#REF!) ->  | O53: =IF(D53="","",#REF!) -> 
D54: =IF(#REF!="","",#REF!) ->  | E54: =IF(D54="","",#REF!) ->  | I54: =IF(D54="","",#REF!*#REF!) ->  | M54: =IF(D54="","",#REF!) ->  | N54: =IF(D54="","",#REF!) ->  | O54: =IF(D54="","",#REF!) -> 
D55: =IF(#REF!="","",#REF!) ->  | E55: =IF(D55="","",#REF!) ->  | I55: =IF(D55="","",#REF!*#REF!) ->  | M55: =IF(D55="","",#REF!) ->  | N55: =IF(D55="","",#REF!) ->  | O55: =IF(D55="","",#REF!) -> 
D56: =IF(#REF!="","",#REF!) ->  | E56: =IF(D56="","",#REF!) ->  | I56: =IF(D56="","",#REF!*#REF!) ->  | M56: =IF(D56="","",#REF!) ->  | N56: =IF(D56="","",#REF!) ->  | O56: =IF(D56="","",#REF!) -> 
D57: =IF(#REF!="","",#REF!) ->  | E57: =IF(D57="","",#REF!) ->  | I57: =IF(D57="","",#REF!*#REF!) ->  | M57: =IF(D57="","",#REF!) ->  | N57: =IF(D57="","",#REF!) ->  | O57: =IF(D57="","",#REF!) -> 
D58: =IF(#REF!="","",#REF!) ->  | E58: =IF(D58="","",#REF!) ->  | I58: =IF(D58="","",#REF!*#REF!) ->  | M58: =IF(D58="","",#REF!) ->  | N58: =IF(D58="","",#REF!) ->  | O58: =IF(D58="","",#REF!) -> 
D59: =IF(#REF!="","",#REF!) ->  | E59: =IF(D59="","",#REF!) ->  | I59: =IF(D59="","",#REF!*#REF!) ->  | M59: =IF(D59="","",#REF!) ->  | N59: =IF(D59="","",#REF!) ->  | O59: =IF(D59="","",#REF!) -> 
D60: =IF(#REF!="","",#REF!) ->  | E60: =IF(D60="","",#REF!) ->  | I60: =IF(D60="","",#REF!*#REF!) ->  | M60: =IF(D60="","",#REF!) ->  | N60: =IF(D60="","",#REF!) ->  | O60: =IF(D60="","",#REF!) -> 
D61: =IF(#REF!="","",#REF!) ->  | E61: =IF(D61="","",#REF!) ->  | I61: =IF(D61="","",#REF!*#REF!) ->  | M61: =IF(D61="","",#REF!) ->  | N61: =IF(D61="","",#REF!) ->  | O61: =IF(D61="","",#REF!) -> 
D62: =IF(#REF!="","",#REF!) ->  | E62: =IF(D62="","",#REF!) ->  | I62: =IF(D62="","",#REF!*#REF!) ->  | M62: =IF(D62="","",#REF!) ->  | N62: =IF(D62="","",#REF!) ->  | O62: =IF(D62="","",#REF!) -> 
D63: =IF(#REF!="","",#REF!) ->  | E63: =IF(D63="","",#REF!) ->  | I63: =IF(D63="","",#REF!*#REF!) ->  | M63: =IF(D63="","",#REF!) ->  | N63: =IF(D63="","",#REF!) ->  | O63: =IF(D63="","",#REF!) -> 
D64: =IF(#REF!="","",#REF!) ->  | E64: =IF(D64="","",#REF!) ->  | I64: =IF(D64="","",#REF!*#REF!) ->  | M64: =IF(D64="","",#REF!) ->  | N64: =IF(D64="","",#REF!) ->  | O64: =IF(D64="","",#REF!) -> 
D65: =IF(#REF!="","",#REF!) ->  | E65: =IF(D65="","",#REF!) ->  | I65: =IF(D65="","",#REF!*#REF!) ->  | M65: =IF(D65="","",#REF!) ->  | N65: =IF(D65="","",#REF!) ->  | O65: =IF(D65="","",#REF!) -> 
D66: =IF(#REF!="","",#REF!) ->  | E66: =IF(D66="","",#REF!) ->  | I66: =IF(D66="","",#REF!*#REF!) ->  | M66: =IF(D66="","",#REF!) ->  | N66: =IF(D66="","",#REF!) ->  | O66: =IF(D66="","",#REF!) -> 
D67: =IF(#REF!="","",#REF!) ->  | E67: =IF(D67="","",#REF!) ->  | I67: =IF(D67="","",#REF!*#REF!) ->  | M67: =IF(D67="","",#REF!) ->  | N67: =IF(D67="","",#REF!) ->  | O67: =IF(D67="","",#REF!) -> 
D68: =IF(#REF!="","",#REF!) ->  | E68: =IF(D68="","",#REF!) ->  | I68: =IF(D68="","",#REF!*#REF!) ->  | M68: =IF(D68="","",#REF!) ->  | N68: =IF(D68="","",#REF!) ->  | O68: =IF(D68="","",#REF!) -> 
D69: =IF(#REF!="","",#REF!) ->  | E69: =IF(D69="","",#REF!) ->  | I69: =IF(D69="","",#REF!*#REF!) ->  | M69: =IF(D69="","",#REF!) ->  | N69: =IF(D69="","",#REF!) ->  | O69: =IF(D69="","",#REF!) -> 
D70: =IF(#REF!="","",#REF!) ->  | E70: =IF(D70="","",#REF!) ->  | I70: =IF(D70="","",#REF!*#REF!) ->  | M70: =IF(D70="","",#REF!) ->  | N70: =IF(D70="","",#REF!) ->  | O70: =IF(D70="","",#REF!) -> 
D71: =IF(#REF!="","",#REF!) ->  | E71: =IF(D71="","",#REF!) ->  | I71: =IF(D71="","",#REF!*#REF!) ->  | M71: =IF(D71="","",#REF!) ->  | N71: =IF(D71="","",#REF!) ->  | O71: =IF(D71="","",#REF!) -> 
D72: =IF(#REF!="","",#REF!) ->  | E72: =IF(D72="","",#REF!) ->  | I72: =IF(D72="","",#REF!*#REF!) ->  | M72: =IF(D72="","",#REF!) ->  | N72: =IF(D72="","",#REF!) ->  | O72: =IF(D72="","",#REF!) -> 
D73: =IF(#REF!="","",#REF!) ->  | E73: =IF(D73="","",#REF!) ->  | I73: =IF(D73="","",#REF!*#REF!) ->  | M73: =IF(D73="","",#REF!) ->  | N73: =IF(D73="","",#REF!) ->  | O73: =IF(D73="","",#REF!) -> 
D74: =IF(#REF!="","",#REF!) ->  | E74: =IF(D74="","",#REF!) ->  | I74: =IF(D74="","",#REF!*#REF!) ->  | M74: =IF(D74="","",#REF!) ->  | N74: =IF(D74="","",#REF!) ->  | O74: =IF(D74="","",#REF!) -> 
D75: =IF(#REF!="","",#REF!) ->  | E75: =IF(D75="","",#REF!) ->  | I75: =IF(D75="","",#REF!*#REF!) ->  | M75: =IF(D75="","",#REF!) ->  | N75: =IF(D75="","",#REF!) ->  | O75: =IF(D75="","",#REF!) -> 
D76: =IF(#REF!="","",#REF!) ->  | E76: =IF(D76="","",#REF!) ->  | I76: =IF(D76="","",#REF!*#REF!) ->  | M76: =IF(D76="","",#REF!) ->  | N76: =IF(D76="","",#REF!) ->  | O76: =IF(D76="","",#REF!) -> 
D77: =IF(#REF!="","",#REF!) ->  | E77: =IF(D77="","",#REF!) ->  | I77: =IF(D77="","",#REF!*#REF!) ->  | K77: =IF(E77="","","เลือกปริ้น") ->  | M77: =IF(D77="","",#REF!) ->  | N77: =IF(D77="","",#REF!) ->  | O77: =IF(D77="","",#REF!) -> 
D78: =IF(#REF!="","",#REF!) ->  | E78: =IF(D78="","",#REF!) ->  | I78: =IF(D78="","",#REF!*#REF!) ->  | M78: =IF(D78="","",#REF!) ->  | N78: =IF(D78="","",#REF!) ->  | O78: =IF(D78="","",#REF!) -> 
D79: =IF(#REF!="","",#REF!) ->  | E79: =IF(D79="","",#REF!) ->  | I79: =IF(D79="","",#REF!*#REF!) ->  | M79: =IF(D79="","",#REF!) ->  | N79: =IF(D79="","",#REF!) ->  | O79: =IF(D79="","",#REF!) -> 
D80: =IF(#REF!="","",#REF!) ->  | E80: =IF(D80="","",#REF!) ->  | I80: =IF(D80="","",#REF!*#REF!) ->  | M80: =IF(D80="","",#REF!) ->  | N80: =IF(D80="","",#REF!) ->  | O80: =IF(D80="","",#REF!) -> 
D81: =IF(#REF!="","",#REF!) ->  | E81: =IF(D81="","",#REF!) ->  | I81: =IF(D81="","",#REF!*#REF!) ->  | M81: =IF(D81="","",#REF!) ->  | N81: =IF(D81="","",#REF!) ->  | O81: =IF(D81="","",#REF!) -> 
D82: =IF(#REF!="","",#REF!) ->  | E82: =IF(D82="","",#REF!) ->  | I82: =IF(D82="","",#REF!*#REF!) ->  | M82: =IF(D82="","",#REF!) ->  | N82: =IF(D82="","",#REF!) ->  | O82: =IF(D82="","",#REF!) -> 
D83: =IF(#REF!="","",#REF!) ->  | E83: =IF(D83="","",#REF!) ->  | I83: =IF(D83="","",#REF!*#REF!) ->  | M83: =IF(D83="","",#REF!) ->  | N83: =IF(D83="","",#REF!) ->  | O83: =IF(D83="","",#REF!) -> 
D84: =IF(#REF!="","",#REF!) ->  | E84: =IF(D84="","",#REF!) ->  | I84: =IF(D84="","",#REF!*#REF!) ->  | M84: =IF(D84="","",#REF!) ->  | N84: =IF(D84="","",#REF!) ->  | O84: =IF(D84="","",#REF!) -> 
D85: =IF(#REF!="","",#REF!) ->  | E85: =IF(D85="","",#REF!) ->  | I85: =IF(D85="","",#REF!*#REF!) ->  | M85: =IF(D85="","",#REF!) ->  | N85: =IF(D85="","",#REF!) ->  | O85: =IF(D85="","",#REF!) -> 
E86: รวมวงเงินไม่เกิน | F86: =แนบท้ายรายงาน2!I24 -> 2000 | H86: =BAHTTEXT(F86) -> สองพันบาทถ้วน | K86: เลือกปริ้น
E87: ข้อเสนอ | K87: เลือกปริ้น
E88: จึงเรียนมาเพื่อโปรดทราบ และพิจารณาอนุมัติ | K88: เลือกปริ้น
G89: (ลงชื่อ)................................................................ | K89: เลือกปริ้น
H90: =DATABASE!D13 -> นายดำรงค์ สีระสูงเนิน | K90: เลือกปริ้น
H91: =DATABASE!D14 -> ผู้อำนวยการโรงพยาบาลส่งเสริมสุขภาพตำบลบ้านกระเบื้องน้อย | K91: เลือกปริ้น
B92: เรียน | C92: =C6 -> สาธารณสุขอำเภอหนองหงส์ | K92: เลือกปริ้น
D93: - เพื่อโปรดทราบ/พิจารณาอนุมัติ | K93: เลือกปริ้น
H94: o อนุมัติ o ไม่อนุมัติ | K94: เลือกปริ้น
H95: เนื่องจาก.................................. | K95: เลือกปริ้น
E96: =DATABASE!C7 -> นางจุรีพร บัวลอย | K96: เลือกปริ้น
E97: =DATABASE!D7 -> นักวิชาการสาธารณสุข ชำนาญการ | K97: เลือกปริ้น
H98: =DATABASE!C6 -> นายประหยัด นงประโคน | K98: เลือกปริ้น
H99: =DATABASE!D6 -> สาธารณสุขอำเภอหนองหงส์ | K99: เลือกปริ้น

Sheet ใบเสนอราคา
B1: ใบเสนอราคา
B2: =DATABASE!C19 -> หจก. เอกสารซีพี
B3: =DATABASE!C20 -> 95/10-11 ถ.อินจันทร์รรงค์ ต.ในเมือง อ.เมือง จ.บุรีรัมย์
B4: =DATABASE!D20 -> โทรศัพท์ 0 4461 4005
C5: วันที่ | D5: 2562-08-22 | H5: รายละเอียดให้ไปบันทึกใน Sheet แนบท้ายรายงาน
B6: เรื่อง | C6: เสนอราคาจ่างถ่ายเอกสารพร้อมเข้าเล่ม
B7: เรียน | C7: =DATABASE!B11 -> เจ้าหน้าที่
C8: =DATABASE!C19&" "&DATABASE!C20&" "&DATABASE!D20 -> หจก. เอกสารซีพี 95/10-11 ถ.อินจันทร์รรงค์ ต.ในเมือง อ.เมือง จ.บุรีรัมย์ โทรศัพท์ 0 4461 4005
B9: =DATABASE!B21&" "&DATABASE!C21&" "&"ข้าพเจ้าเป็นผู้มีคุณสมบัติครบถ้วนตามที่กำหนดและไม่เป็นผู้ทิ้งงานของทางราชการ ขอเสนอพัสดุ " -> เลขผู้เสียภาษี 313555000044 ข้าพเจ้าเป็นผู้มีคุณสมบัติครบถ้วนตามที่กำหนดและไม่เป็นผู้ทิ้งงานของทางราชการ ขอเสนอพัสดุ
B10: รวมทั้งบริการและกำหนดเวลาส่งมอบ ดังต่อไปนี้
B11: ที่ | C11: รายการ | D11: จำนวนหน่วย | F11: ราคาต่อหน่วย | G11: รวมเงิน | I11: << เลือกตัวกรองก่อนปริ้นทุกครั้ง
B12: =IF(C12="","",1) -> 1 | C12: =IF(แนบท้ายรายงาน2!C6="","",แนบท้ายรายงาน2!C6) -> ค่าถ่ายเอกสารสี และขาวดำ จำนวน 98 หน้า พร้อมเข้าเล่ม(ส่งเขต) | D12: =แนบท้ายรายงาน2!D6 -> 1 | E12: =แนบท้ายรายงาน2!E6 -> เล่ม | F12: =แนบท้ายรายงาน2!H6 -> 700 | G12: =แนบท้ายรายงาน2!I6 -> 700 | H12: =IF(C12="","","เลือกปริ้น") -> เลือกปริ้น
B13: =IF(C13="","",B12+1) -> 2 | C13: =IF(แนบท้ายรายงาน2!C7="","",แนบท้ายรายงาน2!C7) -> ค่าถ่ายเอกสารสี และขาวดำ จำนวน 141 หน้า พร้อมเข้าเล่ม (ส่งเขต) | D13: =แนบท้ายรายงาน2!D7 -> 1 | E13: =แนบท้ายรายงาน2!E7 -> เล่ม | F13: =แนบท้ายรายงาน2!H7 -> 1018 | G13: =แนบท้ายรายงาน2!I7 -> 1018 | H13: =IF(C13="","","เลือกปริ้น") -> เลือกปริ้น
B14: =IF(C14="","",B13+1) -> 3 | C14: =IF(แนบท้ายรายงาน2!C8="","",แนบท้ายรายงาน2!C8) -> ค่าถ่ายเอกสารขาวดำ จำนวน 98 หน้า พร้อมเข้าเล่ม(นำเสนอ สสจ.) | D14: =แนบท้ายรายงาน2!D8 -> 2 | E14: =แนบท้ายรายงาน2!E8 -> เล่ม | F14: =แนบท้ายรายงาน2!H8 -> 141 | G14: =แนบท้ายรายงาน2!I8 -> 282 | H14: เลือกปริ้น
C15: =IF(แนบท้ายรายงาน2!C18="","",แนบท้ายรายงาน2!C18) ->  | D15: =แนบท้ายรายงาน2!D18 -> 0 | E15: =แนบท้ายรายงาน2!E18 -> 0 | F15: =แนบท้ายรายงาน2!H18 -> 0 | G15: =แนบท้ายรายงาน2!I18 -> 0
C16: =IF(แนบท้ายรายงาน2!C19="","",แนบท้ายรายงาน2!C19) ->  | D16: =แนบท้ายรายงาน2!D19 -> 0 | E16: =แนบท้ายรายงาน2!E19 -> 0 | F16: =แนบท้ายรายงาน2!H19 -> 0 | G16: =แนบท้ายรายงาน2!I19 -> 0
C17: =IF(แนบท้ายรายงาน2!C20="","",แนบท้ายรายงาน2!C20) ->  | D17: =แนบท้ายรายงาน2!D20 -> 0 | E17: =แนบท้ายรายงาน2!E20 -> 0 | F17: =แนบท้ายรายงาน2!H20 -> 0 | G17: =แนบท้ายรายงาน2!I20 -> 0
C18: =IF(แนบท้ายรายงาน2!C21="","",แนบท้ายรายงาน2!C21) ->  | D18: =แนบท้ายรายงาน2!D21 -> 0 | E18: =แนบท้ายรายงาน2!E21 -> 0 | F18: =แนบท้ายรายงาน2!H21 -> 0 | G18: =แนบท้ายรายงาน2!I21 -> 0
B19: รวมเป็นเงินทั้งสิ้น | G19: =SUM(G12:G18) -> 2000 | H19: เลือกปริ้น
B20: ตัวอักษร | C20: ="("&BAHTTEXT(G19)&")" -> (สองพันบาทถ้วน) | H20: เลือกปริ้น
C21: ซึ่งเป็นราคาที่รวมภาษีมูลค่าเพิ่ม รวมทั้งภาษีอากรอื่น และค่าใช้จ่ายทั้งปวงไว้ด้วยแล้ว | H21: เลือกปริ้น
D22: ขอแสดงความนับถือ | H22: เลือกปริ้น
D23: =DATABASE!D19 -> ......................................................... | H23: เลือกปริ้น
D24: ผู้เสนอราคา | H24: เลือกปริ้น

Sheet รายงานจัดจ้าง
A1: 1 | B1: บันทึกข้อความ
A2: ใส่เลขลำดับ CG | B2: ส่วนราชการ | D2: =DATABASE!C4&" "&DATABASE!D4 -> สำนักงานสาธารณสุขอำเภอหนองหงส์ อำเภอหนองหงส์ จังหวัดบุรีรัมย์
B3: ที่ | C3: =DATABASE!C3 -> บร 1332.1/ | E3: 1016 | G3: วันที่ | H3: 2562-08-22
B4: เรื่อง | C4: ='เห็นชอบรวม(น1)'!C5 -> ถ่ายเอกสารงานราชการและเข้าเล่ม
B5: เรียน | C5: ="ผู้ว่าราชการจังหวัดบุรีรัมย์ (โดย"&DATABASE!D6&"ปฏิบัติราชการแทน)" -> ผู้ว่าราชการจังหวัดบุรีรัมย์ (โดยสาธารณสุขอำเภอหนองหงส์ปฏิบัติราชการแทน)
D6: ด้วย | E6: =DATABASE!C15 -> โรงพยาบาลส่งเสริมสุขภาพตำบลบ้านกระเบื้องน้อย | H6: จะดำเนินการขอจ้างบริการ จำนวน | K6: =แนบท้ายรายงาน2!E2 -> 3 | L6: =แนบท้ายรายงาน2!F2 -> รายการ
B7: ="โดยการจ้างบริการ"&CG!B3&" "&#REF! -> 
B8: โดยวิธีเฉพาะเจาะจง เพื่อใช้ในงานราชการ ตามหนังสือที่ | G8: ='เห็นชอบรวม(น1)'!C4&'เห็นชอบรวม(น1)'!E4&" ลงวันที่ " -> บร 1332.1.4/166 ลงวันที่ | J8: ='เห็นชอบรวม(น1)'!H4 -> 2562-08-21 | K8: (เอกสารที่ 1)
C9: 1 | D9: เหตุผลและความจำเป็นที่ต้องจ้าง
D10: เนื่องจาก โรงพยาบาลส่งเสริมสุขภาพตำบลบ้านกระเบื้องน้อย ต.หนองชัยศรี อ.หนองหงส์ จ.บุรีรัมย์
B11: ='เห็นชอบรวม(น1)'!B8:J8 -> ด้วย สำนักโรคไม่ติดต่อ กรมควบคุมโรค ได้เชิญส่งผลงานการดำเนินงานทีมป้องกันการบาดเจ็บทางถนนระดับตำบล (RTI team) และทีมป้องกันเด็กจมน้ำ ประจำปี 2562 โดย สสจ.บุรีรัมย์ได้เชิญนำเสนอผลงานการดำเนินงาน โดยเตรียมเอกสารรูปเล่มพร้อมไฟล์นำเสนอ ในวันที่ 23 สิงหาคม 2562นั้น และส่งรูปเล่มทั้ง 2 กิจกรรมภายในวันที่ 30 กันยายน 2562 นั้น ในการนี้ โรงพยาบาลส่งเสริมสุขภาพตำบลบ้านกระเบื้องน้อย ต.หนองชัยศรี ได้ส่งผลงานนำเสนอการป้องกันบาดเจ็บทางถนน ระดับ Excellent เป็นปีที่ 2 และทีมป้องกันเด็กจมน้ำ ระดับทอง ดังนั้น เพื่อให้การดำเนินงานเป็นไปด้วยความเรียบร้อย มีประสิทธิภาพ จึงใคร่ขอจัดจ้างถ่ายเอกสารเพื่อใช้ในงานราชการต่อไป
D12: ='เห็นชอบรวม(น1)'!C5 -> ถ่ายเอกสารงานราชการและเข้าเล่ม
B13: =DATABASE!C15&" "&DATABASE!D15 -> โรงพยาบาลส่งเสริมสุขภาพตำบลบ้านกระเบื้องน้อย อำเภอหนองหงส์ จังหวัดบุรีรัมย์
C14: 2 | D14: รายละเอียดของพัสดุ | F14: ปรากฎตามเงื่อนไข และรายละเอียดขอบเขตงานจ้าง (เอกสารแนบท้าย)
C15: 3 | D15: ราคากลางและรายละเอียดของราคากลาง | G15: =แนบท้ายรายงาน2!I24 -> 2000 | H15: บาท
B16: ลงวันที่ 5 ตุลาคม 2560 เรื่อง แนวทางการบริหารจัดการโครงการพัฒนาระบบบริการดูแลระยะยาวด้านสาธารณสุขสำหรับ
B17: ผู้สูงอายุที่มีภาวะพึ่งพิง (Long Term Care) (เอกสารแนบ 4)
C18: 4 | D18: ="วงเงินที่จะจ้าง โดยขอเบิกเงินบำรุงของหน่วยงาน สังกัด "&DATABASE!C15 -> วงเงินที่จะจ้าง โดยขอเบิกเงินบำรุงของหน่วยงาน สังกัด โรงพยาบาลส่งเสริมสุขภาพตำบลบ้านกระเบื้องน้อย
B19: จำนวน | C19: =แนบท้ายรายงาน2!I24 -> 2000 | E19: ="บาท "&"("&BAHTTEXT(C19)&")" -> บาท (สองพันบาทถ้วน) | M19: =ใบสั่งจ้าง!J5 -> 2562-08-23 | N19: <<< วันที่รับใบสั่ง ในใบสั่งจ้าง
C20: 5 | D20: กำหนดเวลาที่ต้องการใช้พัสดุ | F20: หรือให้งานนั้นแล้วเสร็จ | M20: =ใบสั่งจ้าง!F97+รายงานจัดจ้าง!G20 -> 2562-08-23 | N20: <<< วันทำการสิ้นเดือนนั้นๆ
D21: ="กำหนดเวลาการส่งมอบพัสดุหรือให้งานแล้วเสร็จภายใน "&M21&" "&N21&" นับจากวันที่ได้รับใบสั่งจ้าง" -> กำหนดเวลาการส่งมอบพัสดุหรือให้งานแล้วเสร็จภายใน 30 วันทำการ นับจากวันที่ได้รับใบสั่งจ้าง | M21: 30 | N21: วันทำการ
C23: 6 | D23: วิธีที่จะจ้าง และเหตุผลที่ต้องจ้าง
B24: โดยวิธีเฉพาะเจาะจง เนื่องจาก การจัดจ้างพัสดุที่มีการผลิต จำหน่าย ก่อสร้าง หรือให้บริการวไป และมีวงเงินในการจัดซื้อจัดจ้างครั้งหนึ่งไม่เกินวงเงินตามที่กำหนดในกฎกระทรวง
C25: 7 | D25: หลักเกณฑ์การพิจารณาคัดเลือกข้อเสนอ | G25: การพิจารณาคัดเลือกข้อเสนอโดยใช้เกณฑ์ราคา
C26: 8 | D26: การขออนุมัติแต่งตั้งผู้ตรวจรับพัสดุ | G26: การแต่งตั้งผู้ตรวจรับพัสดุ โดยวิธีเฉพาะเจาะจง | M26: เลือก คณะกรรมการ
D27: =IF(DATABASE!C17="","",1) ->  | E27: =DATABASE!C16 -> นายสมยศ นงประโคน | G27: =DATABASE!D16 -> เจ้าพนักงานสาธารณสุข อาวุโส | K27: =IF(DATABASE!C17="","ผู้ตรวจรับพัสดุ","ประธานกรรมการ") -> ผู้ตรวจรับพัสดุ | M27: เลือกปริ้น
D28: =IF(DATABASE!C17="","",2) ->  | E28: =IF(DATABASE!C17="","",DATABASE!C17) ->  | G28: =IF(DATABASE!C17="","",DATABASE!D17) ->  | K28: =IF(DATABASE!C17="","","กรรมการ") ->  | M28: =IF(DATABASE!C17="","","เลือกปริ้น") -> 
D29: =IF(DATABASE!C18="","",3) ->  | E29: =IF(DATABASE!C18="","",DATABASE!C18) ->  | G29: =IF(DATABASE!C18="","",DATABASE!D18) ->  | K29: =IF(DATABASE!C18="","","กรรมการ") ->  | M29: =IF(DATABASE!C18="","","เลือกปริ้น") -> 
D30: จึงเรียนมาเพื่อโปรดพิจารณา หากเห็นชอบขอได้โปรด
C31: 1 | D31: ="เห็นชอบอนุมัติดำเนินการจ้าง "&DATABASE!C19&" "&DATABASE!C20&" เพื่อจ้าง "&แนบท้ายรายงาน2!C6&" จำนวน "&แนบท้ายรายงาน2!D6&" และ "&แนบท้ายรายงาน2!C7&" จำนวน "&แนบท้ายรายงาน2!D7&" "&แนบท้ายรายงาน2!E7&" เป็นจำนวนเงินทั้งสิ้น "&แนบท้ายรายงาน2!I24&" บาท "&"("&BAHTTEXT(G15)&")" -> เห็นชอบอนุมัติดำเนินการจ้าง หจก. เอกสารซีพี 95/10-11 ถ.อินจันทร์รรงค์ ต.ในเมือง อ.เมือง จ.บุรีรัมย์ เพื่อจ้าง ค่าถ่ายเอกสารสี และขาวดำ จำนวน 98 หน้า พร้อมเข้าเล่ม(ส่งเขต) จำนวน 1 และ ค่าถ่ายเอกสารสี และขาวดำ จำนวน 141 หน้า พร้อมเข้าเล่ม (ส่งเขต) จำนวน 1 เล่ม เป็นจำนวนเงินทั้งสิ้น 2000 บาท (สองพันบาทถ้วน)
C32: 2 | D32: ลงนามในคำสั่งแต่งตั้งผู้ตรวจรับพัสดุ โดยวิธีเฉพาะเจาะจง
C33: ลงชื่อ | D33: …………………………………………………เจ้าหน้าที่ | G33: ลงชื่อ | H33: ………………………………………หัวหน้าเจ้าหน้าที่
D34: =DATABASE!C11 -> นางวรรณเพ็ญ วศินไพบูลย์วงศ์ | H34: =DATABASE!C7 -> นางจุรีพร บัวลอย
B35: เรียน | C35: =C5 -> ผู้ว่าราชการจังหวัดบุรีรัมย์ (โดยสาธารณสุขอำเภอหนองหงส์ปฏิบัติราชการแทน)
D36: - โปรดพิจารณาเห็นชอบ/ลงนาม | I36: o | J36: เห็นชอบ / ลงนาม
D38: นายชัยณรงค์ สมสะอาด | H38: =DATABASE!C6 -> นายประหยัด นงประโคน
B39: =DATABASE!D7 -> นักวิชาการสาธารณสุข ชำนาญการ | H39: =DATABASE!D6 -> สาธารณสุขอำเภอหนองหงส์
J40: ปฏิบัติราชการแทนผู้ว่าราชการจังหวัดบุรีรัมย์

Sheet แนบท้ายรายงาน2
B1: ="รายละเอียดแนบท้ายบันทึกข้อความ"&รายงานจัดจ้าง!B3&" "&รายงานจัดจ้าง!C3&" "&รายงานจัดจ้าง!E3 -> รายละเอียดแนบท้ายบันทึกข้อความที่ บร 1332.1/ 1016 | G1: ลงวันที่ | H1: =รายงานจัดจ้าง!H3 -> 2562-08-22 | J1: รวม VAT ใส่เลข 1 ไม่รวมใส่เลข 0
B2: งานจัดจ้าง จำนวน | E2: =COUNT(B6:B21) -> 3 | F2: รายการ | J2: 0 | K2: <<< บันทึกเลข 1 หรือ 0
B3: โรงพยาบาลส่งเสริมสุขภาพตำบลบ้านกระเบื้องน้อย
B4: ลำดับที่ | C4: รายละเอียดของพัสดุที่จะจ้าง | D4: ความต้องการ | F4: o | G4: ราคามาตรฐาน | H4: จำนวนและวงเงินที่ขอจ้างครั้งนี้ | L4: < ถ้าตั้งเงินไว้ | N4: o
D5: จำนวน | F5: þ | G5: ราคาที่ได้จากการสืบจากท้องตลาด หน่วยละ | H5: หน่วยละ (บาท) | I5: จำนวนเงิน (บาท) | K5: << เลือกตัวกรองก่อนปริ้นทุกครั้ง | N5: þ
B6: 1 | C6: ค่าถ่ายเอกสารสี และขาวดำ จำนวน 98 หน้า พร้อมเข้าเล่ม(ส่งเขต) | D6: 1 | E6: เล่ม | H6: 700 | I6: =D6*H6 -> 700 | J6: =IF(C6="","","เลือกปริ้น") -> เลือกปริ้น
B7: 2 | C7: ค่าถ่ายเอกสารสี และขาวดำ จำนวน 141 หน้า พร้อมเข้าเล่ม (ส่งเขต) | D7: 1 | E7: เล่ม | H7: 1018 | I7: =D7*H7 -> 1018 | J7: =IF(C7="","","เลือกปริ้น") -> เลือกปริ้น
B8: 3 | C8: ค่าถ่ายเอกสารขาวดำ จำนวน 98 หน้า พร้อมเข้าเล่ม(นำเสนอ สสจ.) | D8: 2 | E8: เล่ม | H8: 141 | I8: =D8*H8 -> 282 | J8: เลือกปริ้น
H22: รวมเงิน | I22: =IF(J2=1,L22,L23) -> 1869.158879 | J22: เลือกปริ้น | K22: รวม VAT | L22: =SUM(I6:I21) -> 2000
H23: ภาษีมูลค่าเพิ่ม 7% | I23: =IF(J2=1,0,I22*7%) -> 130.8411215 | J23: เลือกปริ้น | K23: ไม่รวม VAT | L23: =L22*100/107 -> 1869.158879
B24: (สองพันสองร้อยหกสิบเจ็ดบาทห้าสิบสตางค์) | H24: รวมเป็นเงินทั้งสิ้น | I24: =SUM(I22:I23) -> 2000 | J24: เลือกปริ้น

Sheet คำสั่ง (hidden)
B5: คำสั่งจังหวัดบุรีรัมย์ | K5: พิมพ์กรณีเกิน 5,000 บาท
B6: =DATABASE!C9 -> ที่ /2560
B7: ='เห็นชอบรวม(น1)'!C5 -> ถ่ายเอกสารงานราชการและเข้าเล่ม
C8: ='เห็นชอบรวม(น1)'!C5 -> ถ่ายเอกสารงานราชการและเข้าเล่ม
B9: =รายงานจัดจ้าง!#REF!& "โดยวิธีเฉพาะเจาะจง และเพื่อเป็นไปตามระเบียบกระทรวงการคลังว่าด้วยการจัดซื้อ จัดจ้าง และการบริหารพัสดุภาครัฐ พ.ศ. 2560 จึงขอแต่งตั้งรายชื่อต่อไปนี้เป็น ผู้ตรวจรับพัสดุ สำหรับการ"&'เห็นชอบรวม(น1)'!C5&" โดยวิธีเฉพาะเจาะจง รายนามดังนี้" -> 
C10: คณะกรรมการตรวจรับพัสดุ
C11: 1 | D11: =DATABASE!C16 -> นายสมยศ นงประโคน | H11: เป็นประธานกรรมการฯ
D12: =DATABASE!D16 -> เจ้าพนักงานสาธารณสุข อาวุโส
C13: 2 | D13: =DATABASE!C17 -> 0 | H13: เป็นกรรมการ
D14: =DATABASE!D17 -> 0
C15: 3 | D15: =DATABASE!C18 -> 0 | H15: เป็นกรรมการ
D16: =DATABASE!D18 -> 0
C17: อำนาจและหน้าที่
C18: ทำการตรวจรับพัสดุให้เป็นไปตามเงื่อนไขของสัญาหรือข้อตกลงนั้น
D19: สั่ง ณ วันที่ | E19: =DATABASE!D9 -> 00:00:00
F23: =DATABASE!C6 -> นายประหยัด นงประโคน
F24: =DATABASE!D6 -> สาธารณสุขอำเภอหนองหงส์
E25: ปฏิบัติราชการแทนผู้ว่าราชการจังหวัดบุรีรัมย์ตาม
D26: =DATABASE!C10 -> คำสั่งจังหวัดบุรีรัมย์ ที่ 27631/2559 ลงวันที่ 24 สิงหาคม 2560

Sheet การพิจารณา (hidden)
B1: บันทึกข้อความ
B2: ส่วนราชการ | D2: =DATABASE!C15&" "&DATABASE!D4 -> โรงพยาบาลส่งเสริมสุขภาพตำบลบ้านกระเบื้องน้อย อำเภอหนองหงส์ จังหวัดบุรีรัมย์
B3: ที่ | C3: =DATABASE!C13 -> บร 1332.1.4/ | G3: วันที่ | H3: 2560-09-28
B4: เรื่อง | C4: =รายงานจัดจ้าง!C4 -> ถ่ายเอกสารงานราชการและเข้าเล่ม | L4: พิมพ์กรณีเกิน 5,000 บาท
B5: เรียน | C5: =รายงานจัดจ้าง!C5 -> ผู้ว่าราชการจังหวัดบุรีรัมย์ (โดยสาธารณสุขอำเภอหนองหงส์ปฏิบัติราชการแทน)
D6: ='เห็นชอบรวม(น1)'!C5 -> ถ่ายเอกสารงานราชการและเข้าเล่ม
B7: โดยวิธีเฉพาะเจาะจง ดังนี้
B8: รายการพิจารณา | G8: ผู้ชนะการเสนอราคา | H8: ราคาที่เสนอ | J8: ราคาที่ตกลงซื้อ | M8: << เลือกตัวกรองก่อนปริ้นทุกครั้ง
B9: =IF(#REF!="","",#REF!&"."&" "&#REF!&" จำนวน "&#REF!&" "&#REF!) ->  | G9: =IF(B9="","",DATABASE!C19) ->  | H9: =IF(B9="","",#REF!) ->  | J9: =IF(H9="","",H9) ->  | L9: =IF(#REF!="","","เลือกก่อนปริ้น") -> 
B10: =IF(#REF!="","",#REF!&"."&" "&#REF!&" จำนวน "&#REF!&" "&#REF!) ->  | G10: =IF(B10="","",$G$9) ->  | H10: =IF(B10="","",#REF!) ->  | J10: =IF(H10="","",H10) ->  | L10: =IF(#REF!="","","เลือกก่อนปริ้น") -> 
B11: =IF(#REF!="","",#REF!&"."&" "&#REF!&" จำนวน "&#REF!&" "&#REF!) ->  | G11: =IF(B11="","",$G$9) ->  | H11: =IF(B11="","",#REF!) ->  | J11: =IF(H11="","",H11) ->  | L11: =IF(#REF!="","","เลือกก่อนปริ้น") -> 
B12: =IF(#REF!="","",#REF!&"."&" "&#REF!&" จำนวน "&#REF!&" "&#REF!) ->  | H12: =IF(B12="","",#REF!) ->  | J12: =IF(H12="","",H12) ->  | L12: =IF(#REF!="","","เลือกก่อนปริ้น") -> 
B13: =IF(#REF!="","",#REF!&"."&" "&#REF!&" จำนวน "&#REF!&" "&#REF!) ->  | H13: =IF(B13="","",#REF!) ->  | J13: =IF(H13="","",H13) ->  | L13: =IF(#REF!="","","เลือกก่อนปริ้น") -> 
B14: =IF(#REF!="","",#REF!&"."&" "&#REF!&" จำนวน "&#REF!&" "&#REF!) ->  | H14: =IF(B14="","",#REF!) ->  | J14: =IF(H14="","",H14) ->  | L14: =IF(#REF!="","","เลือกก่อนปริ้น") -> 
B15: =IF(#REF!="","",#REF!&"."&" "&#REF!&" จำนวน "&#REF!&" "&#REF!) ->  | H15: =IF(B15="","",#REF!) ->  | L15: =IF(#REF!="","","เลือกก่อนปริ้น") -> 
B16: =IF(#REF!="","",#REF!&"."&" "&#REF!&" จำนวน "&#REF!&" "&#REF!) ->  | H16: =IF(B16="","",#REF!) ->  | L16: =IF(#REF!="","","เลือกก่อนปริ้น") -> 
B17: =IF(#REF!="","",#REF!&"."&" "&#REF!&" จำนวน "&#REF!&" "&#REF!) ->  | H17: =IF(B17="","",#REF!) ->  | L17: =IF(#REF!="","","เลือกก่อนปริ้น") -> 
B18: =IF(#REF!="","",#REF!&"."&" "&#REF!&" จำนวน "&#REF!&" "&#REF!) ->  | H18: =IF(B18="","",#REF!) ->  | L18: =IF(#REF!="","","เลือกก่อนปริ้น") -> 
B19: =IF(#REF!="","",#REF!&"."&" "&#REF!&" จำนวน "&#REF!&" "&#REF!) ->  | H19: =IF(B19="","",#REF!) ->  | L19: =IF(#REF!="","","เลือกก่อนปริ้น") -> 
B20: =IF(#REF!="","",#REF!&"."&" "&#REF!&" จำนวน "&#REF!&" "&#REF!) ->  | H20: =IF(B20="","",#REF!) ->  | J20: =IF(H20="","",H20) ->  | L20: =IF(#REF!="","","เลือกก่อนปริ้น") -> 
B21: =IF(#REF!="","",#REF!&"."&" "&#REF!&" จำนวน "&#REF!&" "&#REF!) ->  | H21: =IF(B21="","",#REF!) ->  | L21: =IF(#REF!="","","เลือกก่อนปริ้น") -> 
B22: =IF(#REF!="","",#REF!&"."&" "&#REF!&" จำนวน "&#REF!&" "&#REF!) ->  | H22: =IF(B22="","",#REF!) ->  | L22: =IF(#REF!="","","เลือกก่อนปริ้น") -> 
B23: =IF(#REF!="","",#REF!&"."&" "&#REF!&" จำนวน "&#REF!&" "&#REF!) ->  | H23: =IF(B23="","",#REF!) ->  | L23: =IF(#REF!="","","เลือกก่อนปริ้น") -> 
B24: =IF(#REF!="","",#REF!&"."&" "&#REF!&" จำนวน "&#REF!&" "&#REF!) ->  | H24: =IF(B24="","",#REF!) ->  | L24: =IF(#REF!="","","เลือกก่อนปริ้น") -> 
B25: =IF(#REF!="","",#REF!&"."&" "&#REF!&" จำนวน "&#REF!&" "&#REF!) ->  | H25: =IF(B25="","",#REF!) ->  | L25: =IF(#REF!="","","เลือกก่อนปริ้น") -> 
B26: =IF(#REF!="","",#REF!&"."&" "&#REF!&" จำนวน "&#REF!&" "&#REF!) ->  | H26: =IF(B26="","",#REF!) ->  | L26: =IF(#REF!="","","เลือกก่อนปริ้น") -> 
B27: =IF(#REF!="","",#REF!&"."&" "&#REF!&" จำนวน "&#REF!&" "&#REF!) ->  | H27: =IF(B27="","",#REF!) ->  | L27: =IF(#REF!="","","เลือกก่อนปริ้น") -> 
B28: =IF(#REF!="","",#REF!&"."&" "&#REF!&" จำนวน "&#REF!&" "&#REF!) ->  | H28: =IF(B28="","",#REF!) ->  | L28: =IF(#REF!="","","เลือกก่อนปริ้น") -> 
B29: =IF(#REF!="","",#REF!&"."&" "&#REF!&" จำนวน "&#REF!&" "&#REF!) ->  | H29: =IF(B29="","",#REF!) ->  | L29: =IF(#REF!="","","เลือกก่อนปริ้น") -> 
B30: =IF(#REF!="","",#REF!&"."&" "&#REF!&" จำนวน "&#REF!&" "&#REF!) ->  | H30: =IF(B30="","",#REF!) ->  | L30: =IF(#REF!="","","เลือกก่อนปริ้น") -> 
B31: =IF(#REF!="","",#REF!&"."&" "&#REF!&" จำนวน "&#REF!&" "&#REF!) ->  | H31: =IF(B31="","",#REF!) ->  | L31: =IF(#REF!="","","เลือกก่อนปริ้น") -> 
B32: =IF(#REF!="","",#REF!&"."&" "&#REF!&" จำนวน "&#REF!&" "&#REF!) ->  | H32: =IF(B32="","",#REF!) ->  | L32: =IF(#REF!="","","เลือกก่อนปริ้น") -> 
B33: =IF(#REF!="","",#REF!&"."&" "&#REF!&" จำนวน "&#REF!&" "&#REF!) ->  | H33: =IF(B33="","",#REF!) ->  | L33: =IF(#REF!="","","เลือกก่อนปริ้น") -> 
B34: =IF(#REF!="","",#REF!&"."&" "&#REF!&" จำนวน "&#REF!&" "&#REF!) ->  | H34: =IF(B34="","",#REF!) ->  | L34: =IF(#REF!="","","เลือกก่อนปริ้น") -> 
B35: =IF(#REF!="","",#REF!&"."&" "&#REF!&" จำนวน "&#REF!&" "&#REF!) ->  | H35: =IF(B35="","",#REF!) ->  | L35: =IF(#REF!="","","เลือกก่อนปริ้น") -> 
B36: =IF(#REF!="","",#REF!&"."&" "&#REF!&" จำนวน "&#REF!&" "&#REF!) ->  | H36: =IF(B36="","",#REF!) ->  | L36: =IF(#REF!="","","เลือกก่อนปริ้น") -> 
B37: =IF(#REF!="","",#REF!&"."&" "&#REF!&" จำนวน "&#REF!&" "&#REF!) ->  | H37: =IF(B37="","",#REF!) ->  | L37: =IF(#REF!="","","เลือกก่อนปริ้น") -> 
B38: =IF(#REF!="","",#REF!&"."&" "&#REF!&" จำนวน "&#REF!&" "&#REF!) ->  | H38: =IF(B38="","",#REF!) ->  | L38: =IF(#REF!="","","เลือกก่อนปริ้น") -> 
B39: =IF(#REF!="","",#REF!&"."&" "&#REF!&" จำนวน "&#REF!&" "&#REF!) ->  | H39: =IF(B39="","",#REF!) ->  | L39: =IF(#REF!="","","เลือกก่อนปริ้น") -> 
B40: =IF(#REF!="","",#REF!&"."&" "&#REF!&" จำนวน "&#REF!&" "&#REF!) ->  | H40: =IF(B40="","",#REF!) ->  | L40: =IF(#REF!="","","เลือกก่อนปริ้น") -> 
B41: =IF(#REF!="","",#REF!&"."&" "&#REF!&" จำนวน "&#REF!&" "&#REF!) ->  | H41: =IF(B41="","",#REF!) ->  | L41: =IF(#REF!="","","เลือกก่อนปริ้น") -> 
B42: =IF(#REF!="","",#REF!&"."&" "&#REF!&" จำนวน "&#REF!&" "&#REF!) ->  | H42: =IF(B42="","",#REF!) ->  | L42: =IF(#REF!="","","เลือกก่อนปริ้น") -> 
B43: =IF(#REF!="","",#REF!&"."&" "&#REF!&" จำนวน "&#REF!&" "&#REF!) ->  | H43: =IF(B43="","",#REF!) ->  | L43: =IF(#REF!="","","เลือกก่อนปริ้น") -> 
B44: =IF(#REF!="","",#REF!&"."&" "&#REF!&" จำนวน "&#REF!&" "&#REF!) ->  | H44: =IF(B44="","",#REF!) ->  | L44: =IF(#REF!="","","เลือกก่อนปริ้น") -> 
B45: =IF(#REF!="","",#REF!&"."&" "&#REF!&" จำนวน "&#REF!&" "&#REF!) ->  | H45: =IF(B45="","",#REF!) ->  | L45: =IF(#REF!="","","เลือกก่อนปริ้น") -> 
B46: =IF(#REF!="","",#REF!&"."&" "&#REF!&" จำนวน "&#REF!&" "&#REF!) ->  | H46: =IF(B46="","",#REF!) ->  | L46: =IF(#REF!="","","เลือกก่อนปริ้น") -> 
B47: =IF(#REF!="","",#REF!&"."&" "&#REF!&" จำนวน "&#REF!&" "&#REF!) ->  | H47: =IF(B47="","",#REF!) ->  | L47: =IF(#REF!="","","เลือกก่อนปริ้น") -> 
B48: =IF(#REF!="","",#REF!&"."&" "&#REF!&" จำนวน "&#REF!&" "&#REF!) ->  | H48: =IF(B48="","",#REF!) ->  | L48: =IF(#REF!="","","เลือกก่อนปริ้น") -> 
B49: =IF(#REF!="","",#REF!&"."&" "&#REF!&" จำนวน "&#REF!&" "&#REF!) ->  | H49: =IF(B49="","",#REF!) ->  | L49: =IF(#REF!="","","เลือกก่อนปริ้น") -> 
B50: =IF(#REF!="","",#REF!&"."&" "&#REF!&" จำนวน "&#REF!&" "&#REF!) ->  | H50: =IF(B50="","",#REF!) ->  | L50: =IF(#REF!="","","เลือกก่อนปริ้น") -> 
B51: =IF(#REF!="","",#REF!&"."&" "&#REF!&" จำนวน "&#REF!&" "&#REF!) ->  | H51: =IF(B51="","",#REF!) ->  | L51: =IF(#REF!="","","เลือกก่อนปริ้น") -> 
B52: =IF(#REF!="","",#REF!&"."&" "&#REF!&" จำนวน "&#REF!&" "&#REF!) ->  | H52: =IF(B52="","",#REF!) ->  | L52: =IF(#REF!="","","เลือกก่อนปริ้น") -> 
B53: =IF(#REF!="","",#REF!&"."&" "&#REF!&" จำนวน "&#REF!&" "&#REF!) ->  | H53: =IF(B53="","",#REF!) ->  | L53: =IF(#REF!="","","เลือกก่อนปริ้น") -> 
B54: =IF(#REF!="","",#REF!&"."&" "&#REF!&" จำนวน "&#REF!&" "&#REF!) ->  | H54: =IF(B54="","",#REF!) ->  | L54: =IF(#REF!="","","เลือกก่อนปริ้น") -> 
B55: =IF(#REF!="","",#REF!&"."&" "&#REF!&" จำนวน "&#REF!&" "&#REF!) ->  | H55: =IF(B55="","",#REF!) ->  | L55: =IF(#REF!="","","เลือกก่อนปริ้น") -> 
B56: =IF(#REF!="","",#REF!&"."&" "&#REF!&" จำนวน "&#REF!&" "&#REF!) ->  | H56: =IF(B56="","",#REF!) ->  | L56: =IF(#REF!="","","เลือกก่อนปริ้น") -> 
B57: =IF(#REF!="","",#REF!&"."&" "&#REF!&" จำนวน "&#REF!&" "&#REF!) ->  | H57: =IF(B57="","",#REF!) ->  | L57: =IF(#REF!="","","เลือกก่อนปริ้น") -> 
B58: =IF(#REF!="","",#REF!&"."&" "&#REF!&" จำนวน "&#REF!&" "&#REF!) ->  | H58: =IF(B58="","",#REF!) ->  | L58: =IF(#REF!="","","เลือกก่อนปริ้น") -> 
B59: =IF(#REF!="","",#REF!&"."&" "&#REF!&" จำนวน "&#REF!&" "&#REF!) ->  | H59: =IF(B59="","",#REF!) ->  | L59: =IF(#REF!="","","เลือกก่อนปริ้น") -> 
B60: =IF(#REF!="","",#REF!&"."&" "&#REF!&" จำนวน "&#REF!&" "&#REF!) ->  | H60: =IF(B60="","",#REF!) ->  | L60: =IF(#REF!="","","เลือกก่อนปริ้น") -> 
B61: =IF(#REF!="","",#REF!&"."&" "&#REF!&" จำนวน "&#REF!&" "&#REF!) ->  | H61: =IF(B61="","",#REF!) ->  | L61: =IF(#REF!="","","เลือกก่อนปริ้น") -> 
B62: =IF(#REF!="","",#REF!&"."&" "&#REF!&" จำนวน "&#REF!&" "&#REF!) ->  | H62: =IF(B62="","",#REF!) ->  | L62: =IF(#REF!="","","เลือกก่อนปริ้น") -> 
B63: =IF(#REF!="","",#REF!&"."&" "&#REF!&" จำนวน "&#REF!&" "&#REF!) ->  | H63: =IF(B63="","",#REF!) ->  | L63: =IF(#REF!="","","เลือกก่อนปริ้น") -> 
B64: =IF(#REF!="","",#REF!&"."&" "&#REF!&" จำนวน "&#REF!&" "&#REF!) ->  | H64: =IF(B64="","",#REF!) ->  | L64: =IF(#REF!="","","เลือกก่อนปริ้น") -> 
B65: =IF(#REF!="","",#REF!&"."&" "&#REF!&" จำนวน "&#REF!&" "&#REF!) ->  | H65: =IF(B65="","",#REF!) ->  | L65: =IF(#REF!="","","เลือกก่อนปริ้น") -> 
B66: =IF(#REF!="","",#REF!&"."&" "&#REF!&" จำนวน "&#REF!&" "&#REF!) ->  | H66: =IF(B66="","",#REF!) ->  | L66: =IF(#REF!="","","เลือกก่อนปริ้น") -> 
B67: =IF(#REF!="","",#REF!&"."&" "&#REF!&" จำนวน "&#REF!&" "&#REF!) ->  | H67: =IF(B67="","",#REF!) ->  | L67: =IF(#REF!="","","เลือกก่อนปริ้น") -> 
B68: =IF(#REF!="","",#REF!&"."&" "&#REF!&" จำนวน "&#REF!&" "&#REF!) ->  | H68: =IF(B68="","",#REF!) ->  | L68: =IF(#REF!="","","เลือกก่อนปริ้น") -> 
B69: =IF(#REF!="","",#REF!&"."&" "&#REF!&" จำนวน "&#REF!&" "&#REF!) ->  | H69: =IF(B69="","",#REF!) ->  | L69: =IF(#REF!="","","เลือกก่อนปริ้น") -> 
B70: =IF(#REF!="","",#REF!&"."&" "&#REF!&" จำนวน "&#REF!&" "&#REF!) ->  | H70: =IF(B70="","",#REF!) ->  | L70: =IF(#REF!="","","เลือกก่อนปริ้น") -> 
B71: =IF(#REF!="","",#REF!&"."&" "&#REF!&" จำนวน "&#REF!&" "&#REF!) ->  | H71: =IF(B71="","",#REF!) ->  | L71: =IF(#REF!="","","เลือกก่อนปริ้น") -> 
B72: =IF(#REF!="","",#REF!&"."&" "&#REF!&" จำนวน "&#REF!&" "&#REF!) ->  | H72: =IF(B72="","",#REF!) ->  | L72: =IF(#REF!="","","เลือกก่อนปริ้น") -> 
B73: =IF(#REF!="","",#REF!&"."&" "&#REF!&" จำนวน "&#REF!&" "&#REF!) ->  | H73: =IF(B73="","",#REF!) ->  | L73: =IF(#REF!="","","เลือกก่อนปริ้น") -> 
B74: =IF(#REF!="","",#REF!&"."&" "&#REF!&" จำนวน "&#REF!&" "&#REF!) ->  | H74: =IF(B74="","",#REF!) ->  | L74: =IF(#REF!="","","เลือกก่อนปริ้น") -> 
B75: =IF(#REF!="","",#REF!&"."&" "&#REF!&" จำนวน "&#REF!&" "&#REF!) ->  | G75: =IF(B75="","",$G$9) ->  | H75: =IF(B75="","",#REF!) ->  | L75: =IF(#REF!="","","เลือกก่อนปริ้น") -> 
B76: =IF(#REF!="","",#REF!&"."&" "&#REF!&" จำนวน "&#REF!&" "&#REF!) ->  | H76: =IF(B76="","",#REF!) ->  | L76: =IF(#REF!="","","เลือกก่อนปริ้น") -> 
B77: =IF(#REF!="","",#REF!&"."&" "&#REF!&" จำนวน "&#REF!&" "&#REF!) ->  | H77: =IF(B77="","",#REF!) ->  | L77: =IF(#REF!="","","เลือกก่อนปริ้น") -> 
B78: =IF(#REF!="","",#REF!&"."&" "&#REF!&" จำนวน "&#REF!&" "&#REF!) ->  | H78: =IF(B78="","",#REF!) ->  | L78: =IF(#REF!="","","เลือกก่อนปริ้น") -> 
B79: =IF(#REF!="","",#REF!&"."&" "&#REF!&" จำนวน "&#REF!&" "&#REF!) ->  | H79: =IF(B79="","",#REF!) ->  | L79: =IF(#REF!="","","เลือกก่อนปริ้น") -> 
B80: =IF(#REF!="","",#REF!&"."&" "&#REF!&" จำนวน "&#REF!&" "&#REF!) ->  | H80: =IF(B80="","",#REF!) ->  | L80: =IF(#REF!="","","เลือกก่อนปริ้น") -> 
B81: =IF(#REF!="","",#REF!&"."&" "&#REF!&" จำนวน "&#REF!&" "&#REF!) ->  | H81: =IF(B81="","",#REF!) ->  | L81: =IF(#REF!="","","เลือกก่อนปริ้น") -> 
B82: =IF(#REF!="","",#REF!&"."&" "&#REF!&" จำนวน "&#REF!&" "&#REF!) ->  | H82: =IF(B82="","",#REF!) ->  | L82: =IF(#REF!="","","เลือกก่อนปริ้น") -> 
B83: รวม | H83: =SUM(H9:I82) ->  | J83: =SUM(J9:K82) ->  | L83: เลือกก่อนปริ้น
C84: เกณฑ์การพิจารณาผลการยื่นข้อเสนอครั้งนี้ จะพิจารณาตัดสินโดยใช้หลักเกณฑ์ราคา | L84: เลือกก่อนปริ้น
C85: =DATABASE!C15 -> โรงพยาบาลส่งเสริมสุขภาพตำบลบ้านกระเบื้องน้อย | L85: เลือกก่อนปริ้น
B86: ราคาดังกล่าว | L86: เลือกก่อนปริ้น
C87: จึงเรียนมาเพื่อโปรดพิจารณา หากเห็นชอบขอได้โปรดอนุมัติให้สั่งซื้อจากผู้เสนอราคาดังกล่าว | L87: เลือกก่อนปริ้น
L88: เลือกก่อนปริ้น
G89: ลงชื่อ............................................................. | L89: เลือกก่อนปริ้น
G90: =DATABASE!D13 -> นายดำรงค์ สีระสูงเนิน | L90: เลือกก่อนปริ้น
F91: =DATABASE!D14 -> ผู้อำนวยการโรงพยาบาลส่งเสริมสุขภาพตำบลบ้านกระเบื้องน้อย | L91: เลือกก่อนปริ้น
B92: เรียน | C92: ผู้ว่าราชการจังหวัดบุรีรัมย์ | H92: o | I92: ทราบ/อนุมัติ | L92: เลือกก่อนปริ้น
C93: - เพื่อโปรดทราบ/พิจารณาอนุมัติ | H93: o | I93: ไม่อนุมัติ เนื่องจาก...................... | L93: เลือกก่อนปริ้น
L94: เลือกก่อนปริ้น
C95: =DATABASE!C7 -> นางจุรีพร บัวลอย | L95: เลือกก่อนปริ้น
C96: =DATABASE!D7 -> นักวิชาการสาธารณสุข ชำนาญการ | G96: =DATABASE!C6 -> นายประหยัด นงประโคน | L96: เลือกก่อนปริ้น
G97: =DATABASE!D6 -> สาธารณสุขอำเภอหนองหงส์ | L97: เลือกก่อนปริ้น
G98: =รายงานจัดจ้าง!J40 -> ปฏิบัติราชการแทนผู้ว่าราชการจังหวัดบุรีรัมย์ | L98: เลือกก่อนปริ้น

Sheet ประกาศ (hidden)
B5: ประกาศจังหวัดบุรีรัมย์ | K5: พิมพ์กรณีเกิน 5,000 บาท
B6: ='เห็นชอบรวม(น1)'!C5 -> ถ่ายเอกสารงานราชการและเข้าเล่ม
C7: =DATABASE!C15 -> โรงพยาบาลส่งเสริมสุขภาพตำบลบ้านกระเบื้องน้อย
B8: ='เห็นชอบรวม(น1)'!C5 -> ถ่ายเอกสารงานราชการและเข้าเล่ม | L8: << เลือกตัวกรองก่อนปริ้นทุกครั้ง
C9: =IF(ใบเสนอราคา!B12="","",ใบเสนอราคา!B12&"."&" "&ใบเสนอราคา!C12&" "&" จำนวน"&" "&ใบเสนอราคา!D12&" "&ใบเสนอราคา!E12&"ๆ "&ใบเสนอราคา!F12&" บาท") -> 1. ค่าถ่ายเอกสารสี และขาวดำ จำนวน 98 หน้า พร้อมเข้าเล่ม(ส่งเขต) จำนวน 1 เล่มๆ 700 บาท | K9: =IF(#REF!="","","เลือกเพื่อปริ้น") -> 
C10: =IF(ใบเสนอราคา!B13="","",ใบเสนอราคา!B13&"."&" "&ใบเสนอราคา!C13&" "&" จำนวน"&" "&ใบเสนอราคา!D13&" "&ใบเสนอราคา!E13&"ๆ "&ใบเสนอราคา!F13&" บาท") -> 2. ค่าถ่ายเอกสารสี และขาวดำ จำนวน 141 หน้า พร้อมเข้าเล่ม (ส่งเขต) จำนวน 1 เล่มๆ 1018 บาท | K10: =IF(C10="","","เลือกเพื่อปริ้น") -> เลือกเพื่อปริ้น
C11: =IF(ใบเสนอราคา!B14="","",ใบเสนอราคา!B14&"."&" "&ใบเสนอราคา!C14&" "&" จำนวน"&" "&ใบเสนอราคา!D14&" "&ใบเสนอราคา!E14&"ๆ "&ใบเสนอราคา!F14&" บาท") -> 3. ค่าถ่ายเอกสารขาวดำ จำนวน 98 หน้า พร้อมเข้าเล่ม(นำเสนอ สสจ.) จำนวน 2 เล่มๆ 141 บาท | K11: เลือกเพื่อปริ้น
C12: =IF(ใบเสนอราคา!B15="","",ใบเสนอราคา!B15&"."&" "&ใบเสนอราคา!C15&" "&" จำนวน"&" "&ใบเสนอราคา!D15&" "&ใบเสนอราคา!E15&"ๆ "&ใบเสนอราคา!F15&" บาท") -> 
C13: =IF(ใบเสนอราคา!B16="","",ใบเสนอราคา!B16&"."&" "&ใบเสนอราคา!C16&" "&" จำนวน"&" "&ใบเสนอราคา!D16&" "&ใบเสนอราคา!E16&"ๆ "&ใบเสนอราคา!F16&" บาท") -> 
C14: =IF(ใบเสนอราคา!B17="","",ใบเสนอราคา!B17&"."&" "&ใบเสนอราคา!C17&" "&" จำนวน"&" "&ใบเสนอราคา!D17&" "&ใบเสนอราคา!E17&"ๆ "&ใบเสนอราคา!F17&" บาท") -> 
C15: =IF(ใบเสนอราคา!B18="","",ใบเสนอราคา!B18&"."&" "&ใบเสนอราคา!C18&" "&" จำนวน"&" "&ใบเสนอราคา!D18&" "&ใบเสนอราคา!E18&"ๆ "&ใบเสนอราคา!F18&" บาท") -> 
C16: =IF(ใบเสนอราคา!#REF!="","",ใบเสนอราคา!#REF!&"."&" "&ใบเสนอราคา!#REF!&" "&" จำนวน"&" "&ใบเสนอราคา!#REF!&" "&ใบเสนอราคา!#REF!&"ๆ "&ใบเสนอราคา!#REF!&" บาท") -> 
C17: =IF(ใบเสนอราคา!#REF!="","",ใบเสนอราคา!#REF!&"."&" "&ใบเสนอราคา!#REF!&" "&" จำนวน"&" "&ใบเสนอราคา!#REF!&" "&ใบเสนอราคา!#REF!&"ๆ "&ใบเสนอราคา!#REF!&" บาท") -> 
C18: =IF(ใบเสนอราคา!#REF!="","",ใบเสนอราคา!#REF!&"."&" "&ใบเสนอราคา!#REF!&" "&" จำนวน"&" "&ใบเสนอราคา!#REF!&" "&ใบเสนอราคา!#REF!&"ๆ "&ใบเสนอราคา!#REF!&" บาท") -> 
C19: =IF(ใบเสนอราคา!#REF!="","",ใบเสนอราคา!#REF!&"."&" "&ใบเสนอราคา!#REF!&" "&" จำนวน"&" "&ใบเสนอราคา!#REF!&" "&ใบเสนอราคา!#REF!&"ๆ "&ใบเสนอราคา!#REF!&" บาท") -> 
C20: =IF(ใบเสนอราคา!#REF!="","",ใบเสนอราคา!#REF!&"."&" "&ใบเสนอราคา!#REF!&" "&" จำนวน"&" "&ใบเสนอราคา!#REF!&" "&ใบเสนอราคา!#REF!&"ๆ "&ใบเสนอราคา!#REF!&" บาท") -> 
C21: =IF(ใบเสนอราคา!#REF!="","",ใบเสนอราคา!#REF!&"."&" "&ใบเสนอราคา!#REF!&" "&" จำนวน"&" "&ใบเสนอราคา!#REF!&" "&ใบเสนอราคา!#REF!&"ๆ "&ใบเสนอราคา!#REF!&" บาท") -> 
C22: =IF(ใบเสนอราคา!#REF!="","",ใบเสนอราคา!#REF!&"."&" "&ใบเสนอราคา!#REF!&" "&" จำนวน"&" "&ใบเสนอราคา!#REF!&" "&ใบเสนอราคา!#REF!&"ๆ "&ใบเสนอราคา!#REF!&" บาท") -> 
C23: =IF(ใบเสนอราคา!#REF!="","",ใบเสนอราคา!#REF!&"."&" "&ใบเสนอราคา!#REF!&" "&" จำนวน"&" "&ใบเสนอราคา!#REF!&" "&ใบเสนอราคา!#REF!&"ๆ "&ใบเสนอราคา!#REF!&" บาท") -> 
C24: =IF(ใบเสนอราคา!#REF!="","",ใบเสนอราคา!#REF!&"."&" "&ใบเสนอราคา!#REF!&" "&" จำนวน"&" "&ใบเสนอราคา!#REF!&" "&ใบเสนอราคา!#REF!&"ๆ "&ใบเสนอราคา!#REF!&" บาท") -> 
C25: =IF(ใบเสนอราคา!#REF!="","",ใบเสนอราคา!#REF!&"."&" "&ใบเสนอราคา!#REF!&" "&" จำนวน"&" "&ใบเสนอราคา!#REF!&" "&ใบเสนอราคา!#REF!&"ๆ "&ใบเสนอราคา!#REF!&" บาท") -> 
C26: =IF(ใบเสนอราคา!#REF!="","",ใบเสนอราคา!#REF!&"."&" "&ใบเสนอราคา!#REF!&" "&" จำนวน"&" "&ใบเสนอราคา!#REF!&" "&ใบเสนอราคา!#REF!&"ๆ "&ใบเสนอราคา!#REF!&" บาท") -> 
C27: =IF(ใบเสนอราคา!#REF!="","",ใบเสนอราคา!#REF!&"."&" "&ใบเสนอราคา!#REF!&" "&" จำนวน"&" "&ใบเสนอราคา!#REF!&" "&ใบเสนอราคา!#REF!&"ๆ "&ใบเสนอราคา!#REF!&" บาท") -> 
C28: =IF(ใบเสนอราคา!#REF!="","",ใบเสนอราคา!#REF!&"."&" "&ใบเสนอราคา!#REF!&" "&" จำนวน"&" "&ใบเสนอราคา!#REF!&" "&ใบเสนอราคา!#REF!&"ๆ "&ใบเสนอราคา!#REF!&" บาท") -> 
C29: =IF(ใบเสนอราคา!#REF!="","",ใบเสนอราคา!#REF!&"."&" "&ใบเสนอราคา!#REF!&" "&" จำนวน"&" "&ใบเสนอราคา!#REF!&" "&ใบเสนอราคา!#REF!&"ๆ "&ใบเสนอราคา!#REF!&" บาท") -> 
C30: =IF(ใบเสนอราคา!#REF!="","",ใบเสนอราคา!#REF!&"."&" "&ใบเสนอราคา!#REF!&" "&" จำนวน"&" "&ใบเสนอราคา!#REF!&" "&ใบเสนอราคา!#REF!&"ๆ "&ใบเสนอราคา!#REF!&" บาท") -> 
C31: =IF(ใบเสนอราคา!#REF!="","",ใบเสนอราคา!#REF!&"."&" "&ใบเสนอราคา!#REF!&" "&" จำนวน"&" "&ใบเสนอราคา!#REF!&" "&ใบเสนอราคา!#REF!&"ๆ "&ใบเสนอราคา!#REF!&" บาท") -> 
C32: =IF(ใบเสนอราคา!#REF!="","",ใบเสนอราคา!#REF!&"."&" "&ใบเสนอราคา!#REF!&" "&" จำนวน"&" "&ใบเสนอราคา!#REF!&" "&ใบเสนอราคา!#REF!&"ๆ "&ใบเสนอราคา!#REF!&" บาท") -> 
C33: =IF(ใบเสนอราคา!#REF!="","",ใบเสนอราคา!#REF!&"."&" "&ใบเสนอราคา!#REF!&" "&" จำนวน"&" "&ใบเสนอราคา!#REF!&" "&ใบเสนอราคา!#REF!&"ๆ "&ใบเสนอราคา!#REF!&" บาท") -> 
C34: =IF(ใบเสนอราคา!#REF!="","",ใบเสนอราคา!#REF!&"."&" "&ใบเสนอราคา!#REF!&" "&" จำนวน"&" "&ใบเสนอราคา!#REF!&" "&ใบเสนอราคา!#REF!&"ๆ "&ใบเสนอราคา!#REF!&" บาท") -> 
C35: =IF(ใบเสนอราคา!#REF!="","",ใบเสนอราคา!#REF!&"."&" "&ใบเสนอราคา!#REF!&" "&" จำนวน"&" "&ใบเสนอราคา!#REF!&" "&ใบเสนอราคา!#REF!&"ๆ "&ใบเสนอราคา!#REF!&" บาท") -> 
C36: =IF(ใบเสนอราคา!#REF!="","",ใบเสนอราคา!#REF!&"."&" "&ใบเสนอราคา!#REF!&" "&" จำนวน"&" "&ใบเสนอราคา!#REF!&" "&ใบเสนอราคา!#REF!&"ๆ "&ใบเสนอราคา!#REF!&" บาท") -> 
C37: =IF(ใบเสนอราคา!#REF!="","",ใบเสนอราคา!#REF!&"."&" "&ใบเสนอราคา!#REF!&" "&" จำนวน"&" "&ใบเสนอราคา!#REF!&" "&ใบเสนอราคา!#REF!&"ๆ "&ใบเสนอราคา!#REF!&" บาท") -> 
C38: =IF(ใบเสนอราคา!#REF!="","",ใบเสนอราคา!#REF!&"."&" "&ใบเสนอราคา!#REF!&" "&" จำนวน"&" "&ใบเสนอราคา!#REF!&" "&ใบเสนอราคา!#REF!&"ๆ "&ใบเสนอราคา!#REF!&" บาท") -> 
C39: =IF(ใบเสนอราคา!#REF!="","",ใบเสนอราคา!#REF!&"."&" "&ใบเสนอราคา!#REF!&" "&" จำนวน"&" "&ใบเสนอราคา!#REF!&" "&ใบเสนอราคา!#REF!&"ๆ "&ใบเสนอราคา!#REF!&" บาท") -> 
C40: =IF(ใบเสนอราคา!#REF!="","",ใบเสนอราคา!#REF!&"."&" "&ใบเสนอราคา!#REF!&" "&" จำนวน"&" "&ใบเสนอราคา!#REF!&" "&ใบเสนอราคา!#REF!&"ๆ "&ใบเสนอราคา!#REF!&" บาท") -> 
C41: =IF(ใบเสนอราคา!#REF!="","",ใบเสนอราคา!#REF!&"."&" "&ใบเสนอราคา!#REF!&" "&" จำนวน"&" "&ใบเสนอราคา!#REF!&" "&ใบเสนอราคา!#REF!&"ๆ "&ใบเสนอราคา!#REF!&" บาท") -> 
C42: =IF(ใบเสนอราคา!#REF!="","",ใบเสนอราคา!#REF!&"."&" "&ใบเสนอราคา!#REF!&" "&" จำนวน"&" "&ใบเสนอราคา!#REF!&" "&ใบเสนอราคา!#REF!&"ๆ "&ใบเสนอราคา!#REF!&" บาท") -> 
C43: =IF(ใบเสนอราคา!#REF!="","",ใบเสนอราคา!#REF!&"."&" "&ใบเสนอราคา!#REF!&" "&" จำนวน"&" "&ใบเสนอราคา!#REF!&" "&ใบเสนอราคา!#REF!&"ๆ "&ใบเสนอราคา!#REF!&" บาท") -> 
C44: =IF(ใบเสนอราคา!#REF!="","",ใบเสนอราคา!#REF!&"."&" "&ใบเสนอราคา!#REF!&" "&" จำนวน"&" "&ใบเสนอราคา!#REF!&" "&ใบเสนอราคา!#REF!&"ๆ "&ใบเสนอราคา!#REF!&" บาท") -> 
C45: =IF(ใบเสนอราคา!#REF!="","",ใบเสนอราคา!#REF!&"."&" "&ใบเสนอราคา!#REF!&" "&" จำนวน"&" "&ใบเสนอราคา!#REF!&" "&ใบเสนอราคา!#REF!&"ๆ "&ใบเสนอราคา!#REF!&" บาท") -> 
C46: =IF(ใบเสนอราคา!#REF!="","",ใบเสนอราคา!#REF!&"."&" "&ใบเสนอราคา!#REF!&" "&" จำนวน"&" "&ใบเสนอราคา!#REF!&" "&ใบเสนอราคา!#REF!&"ๆ "&ใบเสนอราคา!#REF!&" บาท") -> 
C47: =IF(ใบเสนอราคา!#REF!="","",ใบเสนอราคา!#REF!&"."&" "&ใบเสนอราคา!#REF!&" "&" จำนวน"&" "&ใบเสนอราคา!#REF!&" "&ใบเสนอราคา!#REF!&"ๆ "&ใบเสนอราคา!#REF!&" บาท") -> 
C48: =IF(ใบเสนอราคา!#REF!="","",ใบเสนอราคา!#REF!&"."&" "&ใบเสนอราคา!#REF!&" "&" จำนวน"&" "&ใบเสนอราคา!#REF!&" "&ใบเสนอราคา!#REF!&"ๆ "&ใบเสนอราคา!#REF!&" บาท") -> 
C49: =IF(ใบเสนอราคา!#REF!="","",ใบเสนอราคา!#REF!&"."&" "&ใบเสนอราคา!#REF!&" "&" จำนวน"&" "&ใบเสนอราคา!#REF!&" "&ใบเสนอราคา!#REF!&"ๆ "&ใบเสนอราคา!#REF!&" บาท") -> 
C50: =IF(ใบเสนอราคา!#REF!="","",ใบเสนอราคา!#REF!&"."&" "&ใบเสนอราคา!#REF!&" "&" จำนวน"&" "&ใบเสนอราคา!#REF!&" "&ใบเสนอราคา!#REF!&"ๆ "&ใบเสนอราคา!#REF!&" บาท") -> 
C51: =IF(ใบเสนอราคา!#REF!="","",ใบเสนอราคา!#REF!&"."&" "&ใบเสนอราคา!#REF!&" "&" จำนวน"&" "&ใบเสนอราคา!#REF!&" "&ใบเสนอราคา!#REF!&"ๆ "&ใบเสนอราคา!#REF!&" บาท") -> 
C52: =IF(ใบเสนอราคา!#REF!="","",ใบเสนอราคา!#REF!&"."&" "&ใบเสนอราคา!#REF!&" "&" จำนวน"&" "&ใบเสนอราคา!#REF!&" "&ใบเสนอราคา!#REF!&"ๆ "&ใบเสนอราคา!#REF!&" บาท") -> 
C53: =IF(ใบเสนอราคา!#REF!="","",ใบเสนอราคา!#REF!&"."&" "&ใบเสนอราคา!#REF!&" "&" จำนวน"&" "&ใบเสนอราคา!#REF!&" "&ใบเสนอราคา!#REF!&"ๆ "&ใบเสนอราคา!#REF!&" บาท") -> 
C54: =IF(ใบเสนอราคา!#REF!="","",ใบเสนอราคา!#REF!&"."&" "&ใบเสนอราคา!#REF!&" "&" จำนวน"&" "&ใบเสนอราคา!#REF!&" "&ใบเสนอราคา!#REF!&"ๆ "&ใบเสนอราคา!#REF!&" บาท") -> 
C55: =IF(ใบเสนอราคา!#REF!="","",ใบเสนอราคา!#REF!&"."&" "&ใบเสนอราคา!#REF!&" "&" จำนวน"&" "&ใบเสนอราคา!#REF!&" "&ใบเสนอราคา!#REF!&"ๆ "&ใบเสนอราคา!#REF!&" บาท") -> 
C56: =IF(ใบเสนอราคา!#REF!="","",ใบเสนอราคา!#REF!&"."&" "&ใบเสนอราคา!#REF!&" "&" จำนวน"&" "&ใบเสนอราคา!#REF!&" "&ใบเสนอราคา!#REF!&"ๆ "&ใบเสนอราคา!#REF!&" บาท") -> 
C57: =IF(ใบเสนอราคา!#REF!="","",ใบเสนอราคา!#REF!&"."&" "&ใบเสนอราคา!#REF!&" "&" จำนวน"&" "&ใบเสนอราคา!#REF!&" "&ใบเสนอราคา!#REF!&"ๆ "&ใบเสนอราคา!#REF!&" บาท") -> 
C58: =IF(ใบเสนอราคา!#REF!="","",ใบเสนอราคา!#REF!&"."&" "&ใบเสนอราคา!#REF!&" "&" จำนวน"&" "&ใบเสนอราคา!#REF!&" "&ใบเสนอราคา!#REF!&"ๆ "&ใบเสนอราคา!#REF!&" บาท") -> 
C59: =IF(ใบเสนอราคา!#REF!="","",ใบเสนอราคา!#REF!&"."&" "&ใบเสนอราคา!#REF!&" "&" จำนวน"&" "&ใบเสนอราคา!#REF!&" "&ใบเสนอราคา!#REF!&"ๆ "&ใบเสนอราคา!#REF!&" บาท") -> 
C60: =IF(ใบเสนอราคา!#REF!="","",ใบเสนอราคา!#REF!&"."&" "&ใบเสนอราคา!#REF!&" "&" จำนวน"&" "&ใบเสนอราคา!#REF!&" "&ใบเสนอราคา!#REF!&"ๆ "&ใบเสนอราคา!#REF!&" บาท") -> 
C61: =IF(ใบเสนอราคา!#REF!="","",ใบเสนอราคา!#REF!&"."&" "&ใบเสนอราคา!#REF!&" "&" จำนวน"&" "&ใบเสนอราคา!#REF!&" "&ใบเสนอราคา!#REF!&"ๆ "&ใบเสนอราคา!#REF!&" บาท") -> 
C62: =IF(ใบเสนอราคา!#REF!="","",ใบเสนอราคา!#REF!&"."&" "&ใบเสนอราคา!#REF!&" "&" จำนวน"&" "&ใบเสนอราคา!#REF!&" "&ใบเสนอราคา!#REF!&"ๆ "&ใบเสนอราคา!#REF!&" บาท") -> 
C63: =IF(ใบเสนอราคา!#REF!="","",ใบเสนอราคา!#REF!&"."&" "&ใบเสนอราคา!#REF!&" "&" จำนวน"&" "&ใบเสนอราคา!#REF!&" "&ใบเสนอราคา!#REF!&"ๆ "&ใบเสนอราคา!#REF!&" บาท") -> 
C64: =IF(ใบเสนอราคา!#REF!="","",ใบเสนอราคา!#REF!&"."&" "&ใบเสนอราคา!#REF!&" "&" จำนวน"&" "&ใบเสนอราคา!#REF!&" "&ใบเสนอราคา!#REF!&"ๆ "&ใบเสนอราคา!#REF!&" บาท") -> 
C65: =IF(ใบเสนอราคา!#REF!="","",ใบเสนอราคา!#REF!&"."&" "&ใบเสนอราคา!#REF!&" "&" จำนวน"&" "&ใบเสนอราคา!#REF!&" "&ใบเสนอราคา!#REF!&"ๆ "&ใบเสนอราคา!#REF!&" บาท") -> 
C66: =IF(ใบเสนอราคา!#REF!="","",ใบเสนอราคา!#REF!&"."&" "&ใบเสนอราคา!#REF!&" "&" จำนวน"&" "&ใบเสนอราคา!#REF!&" "&ใบเสนอราคา!#REF!&"ๆ "&ใบเสนอราคา!#REF!&" บาท") -> 
C67: =IF(ใบเสนอราคา!#REF!="","",ใบเสนอราคา!#REF!&"."&" "&ใบเสนอราคา!#REF!&" "&" จำนวน"&" "&ใบเสนอราคา!#REF!&" "&ใบเสนอราคา!#REF!&"ๆ "&ใบเสนอราคา!#REF!&" บาท") -> 
C68: =IF(ใบเสนอราคา!#REF!="","",ใบเสนอราคา!#REF!&"."&" "&ใบเสนอราคา!#REF!&" "&" จำนวน"&" "&ใบเสนอราคา!#REF!&" "&ใบเสนอราคา!#REF!&"ๆ "&ใบเสนอราคา!#REF!&" บาท") -> 
C69: =IF(ใบเสนอราคา!#REF!="","",ใบเสนอราคา!#REF!&"."&" "&ใบเสนอราคา!#REF!&" "&" จำนวน"&" "&ใบเสนอราคา!#REF!&" "&ใบเสนอราคา!#REF!&"ๆ "&ใบเสนอราคา!#REF!&" บาท") -> 
C70: =IF(ใบเสนอราคา!#REF!="","",ใบเสนอราคา!#REF!&"."&" "&ใบเสนอราคา!#REF!&" "&" จำนวน"&" "&ใบเสนอราคา!#REF!&" "&ใบเสนอราคา!#REF!&"ๆ "&ใบเสนอราคา!#REF!&" บาท") -> 
C71: =IF(ใบเสนอราคา!#REF!="","",ใบเสนอราคา!#REF!&"."&" "&ใบเสนอราคา!#REF!&" "&" จำนวน"&" "&ใบเสนอราคา!#REF!&" "&ใบเสนอราคา!#REF!&"ๆ "&ใบเสนอราคา!#REF!&" บาท") -> 
C72: =IF(ใบเสนอราคา!#REF!="","",ใบเสนอราคา!#REF!&"."&" "&ใบเสนอราคา!#REF!&" "&" จำนวน"&" "&ใบเสนอราคา!#REF!&" "&ใบเสนอราคา!#REF!&"ๆ "&ใบเสนอราคา!#REF!&" บาท") -> 
C73: =IF(ใบเสนอราคา!#REF!="","",ใบเสนอราคา!#REF!&"."&" "&ใบเสนอราคา!#REF!&" "&" จำนวน"&" "&ใบเสนอราคา!#REF!&" "&ใบเสนอราคา!#REF!&"ๆ "&ใบเสนอราคา!#REF!&" บาท") -> 
C74: =IF(ใบเสนอราคา!#REF!="","",ใบเสนอราคา!#REF!&"."&" "&ใบเสนอราคา!#REF!&" "&" จำนวน"&" "&ใบเสนอราคา!#REF!&" "&ใบเสนอราคา!#REF!&"ๆ "&ใบเสนอราคา!#REF!&" บาท") ->  | K74: =IF(C74="","","เลือกเพื่อปริ้น") -> 
C75: =IF(ใบเสนอราคา!#REF!="","",ใบเสนอราคา!#REF!&"."&" "&ใบเสนอราคา!#REF!&" "&" จำนวน"&" "&ใบเสนอราคา!#REF!&" "&ใบเสนอราคา!#REF!&"ๆ "&ใบเสนอราคา!#REF!&" บาท") -> 
C76: =IF(ใบเสนอราคา!#REF!="","",ใบเสนอราคา!#REF!&"."&" "&ใบเสนอราคา!#REF!&" "&" จำนวน"&" "&ใบเสนอราคา!#REF!&" "&ใบเสนอราคา!#REF!&"ๆ "&ใบเสนอราคา!#REF!&" บาท") -> 
C77: =IF(ใบเสนอราคา!#REF!="","",ใบเสนอราคา!#REF!&"."&" "&ใบเสนอราคา!#REF!&" "&" จำนวน"&" "&ใบเสนอราคา!#REF!&" "&ใบเสนอราคา!#REF!&"ๆ "&ใบเสนอราคา!#REF!&" บาท") -> 
C78: =IF(ใบเสนอราคา!#REF!="","",ใบเสนอราคา!#REF!&"."&" "&ใบเสนอราคา!#REF!&" "&" จำนวน"&" "&ใบเสนอราคา!#REF!&" "&ใบเสนอราคา!#REF!&"ๆ "&ใบเสนอราคา!#REF!&" บาท") -> 
C79: =IF(ใบเสนอราคา!#REF!="","",ใบเสนอราคา!#REF!&"."&" "&ใบเสนอราคา!#REF!&" "&" จำนวน"&" "&ใบเสนอราคา!#REF!&" "&ใบเสนอราคา!#REF!&"ๆ "&ใบเสนอราคา!#REF!&" บาท") -> 
C80: =IF(ใบเสนอราคา!#REF!="","",ใบเสนอราคา!#REF!&"."&" "&ใบเสนอราคา!#REF!&" "&" จำนวน"&" "&ใบเสนอราคา!#REF!&" "&ใบเสนอราคา!#REF!&"ๆ "&ใบเสนอราคา!#REF!&" บาท") -> 
C81: =IF(ใบเสนอราคา!#REF!="","",ใบเสนอราคา!#REF!&"."&" "&ใบเสนอราคา!#REF!&" "&" จำนวน"&" "&ใบเสนอราคา!#REF!&" "&ใบเสนอราคา!#REF!&"ๆ "&ใบเสนอราคา!#REF!&" บาท") -> 
C82: =IF(ใบเสนอราคา!#REF!="","",ใบเสนอราคา!#REF!&"."&" "&ใบเสนอราคา!#REF!&" "&" จำนวน"&" "&ใบเสนอราคา!#REF!&" "&ใบเสนอราคา!#REF!&"ๆ "&ใบเสนอราคา!#REF!&" บาท") -> 
B83: ผู้เสนอราคาที่ชนะการเสนอราคา ได้แก่ | E83: =DATABASE!C19 -> หจก. เอกสารซีพี | K83: เลือกเพื่อปริ้น
B84: =ใบเสนอราคา!G19 -> 2000 | C84: บาท | D84: ="("&BAHTTEXT(B84)&")" -> (สองพันบาทถ้วน) | K84: เลือกเพื่อปริ้น
B85: ค่าจดทะเบียน และค่าใช้จ่ายอื่นๆ ทั้งปวง | K85: เลือกเพื่อปริ้น
C86: ประกาศ ณ วันที่ | E86: 2560-09-28 | K86: เลือกเพื่อปริ้น
K87: เลือกเพื่อปริ้น
F88: =DATABASE!C6 -> นายประหยัด นงประโคน | K88: เลือกเพื่อปริ้น
F89: =DATABASE!D6 -> สาธารณสุขอำเภอหนองหงส์ | K89: เลือกเพื่อปริ้น
E90: ปฏิบัติราชการแทนผู้ว่าราชการจังหวัดบุรีรัมย์ตาม | K90: เลือกเพื่อปริ้น
D91: =DATABASE!C10 -> คำสั่งจังหวัดบุรีรัมย์ ที่ 27631/2559 ลงวันที่ 24 สิงหาคม 2560 | K91: เลือกเพื่อปริ้น

Sheet ใบสั่งจ้าง
B3: ใบสั่งจ้าง | K3: =DAY(F5) -> 22 | L3: =MONTH(F5) -> 8 | M3: =YEAR(F5) -> 2562
B4: ="ผู้รับจ้าง : "&DATABASE!C19 -> ผู้รับจ้าง : หจก. เอกสารซีพี | E4: ใบสั่งจ้าง เลขที่ | F4: 710/2562
B5: ="ที่อยู่ "&DATABASE!C20&" "&DATABASE!D20 -> ที่อยู่ 95/10-11 ถ.อินจันทร์รรงค์ ต.ในเมือง อ.เมือง จ.บุรีรัมย์ โทรศัพท์ 0 4461 4005 | E5: วันที่ | F5: 2562-08-22 | H5: บันทึกรับใบสั่งซื้อ >>>> | J5: =F5+1 -> 2562-08-23
E6: =DATABASE!C4 -> สำนักงานสาธารณสุขอำเภอหนองหงส์ | H6: วันทำการสุดท้าย >>>> | J6: 2561-01-29
B7: ="เลขประจำตัวผู้เสียภาษี "&DATABASE!C21 -> เลขประจำตัวผู้เสียภาษี 313555000044 | E7: =DATABASE!C5 -> ที่อยู่ หมู่ที่ 14 ถนนราษฎร์บำรุง ตำบลสระแก้ว 31240
B8: - | E8: =DATABASE!D15 -> อำเภอหนองหงส์ จังหวัดบุรีรัมย์
B9: - | E9: =DATABASE!D5 -> โทร. 0 4466 9276, 0 4466 9020
B10: =DATABASE!C19&" ได้เสนอราคาต่อ "&DATABASE!C2 -> หจก. เอกสารซีพี ได้เสนอราคาต่อ สำนักงานสาธารณสุขอำเภอหนองหงส์ ถ.ราษฎร์บำรุง จังหวัดบุรีรัมย์
B11: ซึ่งได้รับการราคาตกลงจ้าง ตามรายการ ดังต่อไปนี้
B12: ลำดับ | C12: รายการ | D12: จำนวน | F12: ราคาต่อหน่วย | G12: จำนวนเงิน
F13: (บาท) | G13: (บาท) | I13: << เลือกตัวกรองก่อนปริ้นทุกครั้ง
B14: =IF(แนบท้ายรายงาน2!B6="","",แนบท้ายรายงาน2!B6) -> 1 | C14: =แนบท้ายรายงาน2!C6 -> ค่าถ่ายเอกสารสี และขาวดำ จำนวน 98 หน้า พร้อมเข้าเล่ม(ส่งเขต) | D14: =แนบท้ายรายงาน2!D6 -> 1 | E14: =แนบท้ายรายงาน2!E6 -> เล่ม | F14: =แนบท้ายรายงาน2!H6 -> 700 | G14: =F14*D14 -> 700 | H14: =IF(C14="","","เลือกปริ้น") -> เลือกปริ้น
B15: 2 | C15: =แนบท้ายรายงาน2!C7 -> ค่าถ่ายเอกสารสี และขาวดำ จำนวน 141 หน้า พร้อมเข้าเล่ม (ส่งเขต) | D15: =แนบท้ายรายงาน2!D7 -> 1 | E15: =แนบท้ายรายงาน2!E7 -> เล่ม | F15: =แนบท้ายรายงาน2!H7 -> 1018 | G15: =F15*D15 -> 1018 | H15: =IF(C15="","","เลือกปริ้น") -> เลือกปริ้น
B16: 3 | C16: =แนบท้ายรายงาน2!C8 -> ค่าถ่ายเอกสารขาวดำ จำนวน 98 หน้า พร้อมเข้าเล่ม(นำเสนอ สสจ.) | D16: =แนบท้ายรายงาน2!D8 -> 2 | E16: =แนบท้ายรายงาน2!E8 -> เล่ม | F16: =แนบท้ายรายงาน2!H8 -> 141 | G16: =F16*D16 -> 282 | H16: เลือกปริ้น
C17: . | H17: เลือกปริ้น
C18: . | H18: เลือกปริ้น
C19: . | H19: เลือกปริ้น
C20: . | H20: เลือกปริ้น
C21: . | H21: เลือกปริ้น
H79: =IF(C79="","","เลือกปริ้น") -> 
E80: รวมเป็นเงิน | G80: =แนบท้ายรายงาน2!I22 -> 1869.158879 | H80: เลือกปริ้น
E81: ภาษีมูลค่าเพิ่ม | G81: =แนบท้ายรายงาน2!I23 -> 130.8411215 | H81: เลือกปริ้น
B82: =BAHTTEXT(G82) -> สองพันบาทถ้วน | E82: รวมเป็นเงินทั้งสิ้น | G82: =แนบท้ายรายงาน2!I24 -> 2000 | H82: เลือกปริ้น
B83: การสั่งจ้าง อยู่ภายใต้เงื่อนไขดังต่อไปนี้ | H83: เลือกปริ้น
B84: 1 | C84: ="กำหนดส่งมอบภายใน"&" "&K84&" "&รายงานจัดจ้าง!N21&" "&I84 -> กำหนดส่งมอบภายใน 30 วันทำการ นับถัดจากวันที่ผู้รับจ้างได้รับใบสั่งจ้าง | H84: เลือกปริ้น | I84: นับถัดจากวันที่ผู้รับจ้างได้รับใบสั่งจ้าง | K84: =รายงานจัดจ้าง!M21 -> 30
B85: 2 | C85: =J85 -> 2562-10-04 | H85: เลือกปริ้น | J85: =F97+K84+12 -> 2562-10-04
B86: 3 | C86: =DATABASE!C15 -> โรงพยาบาลส่งเสริมสุขภาพตำบลบ้านกระเบื้องน้อย | H86: เลือกปริ้น
B87: 4 | C87: ระยะเวลารับประกัน ............ ปี | H87: เลือกปริ้น
B88: 5 | C88: สงวนสิทธิ์ค่าปรับกรณีส่งมอบเกินกำหนด โดยคิดค่าปรับเป็นรายวัน ดังนี้ | H88: เลือกปริ้น
C89: จ้างในอัตราร้อยละ 0.10 ของราคา งานจ้างนั้นที่ยังไม่ได้รับทอบ แต่จะต้องไม่ต่ำกว่าวันละ 100.00 บาท | H89: เลือกปริ้น
B90: 6 | C90: ส่วนราชการสงวนสิทธิ์ที่จะไม่รับมอบถ้าปรากฏว่าสินค้านั้นมีลักษณะไม่ตรงตามรายการที่ระบุไว้ในใบสั่งจ้าง กรณีนี้ | H90: เลือกปริ้น
C91: ผู้รับจ้างจะต้องดำเนินการเปลี่ยนใหม่ให้ถูกต้องตามใบสั่งจ้างทุกประการ | H91: เลือกปริ้น
B92: 7 | C92: กรณีงานจ้าง ผู้จ้างจะต้องไม่เอางานทั้งหมดหรือแต่บางส่วนแห่งสัญญานี้ไปจ้างช่วงอีกทอดหนึ่ง เว้นแต่การจ้างช่วงงานแต่บางส่วนที่ได้รับอนุญาตเป็นหนังสือจากผู้ว่าจ้างแล้ว การที่ผู้ว่าจ้างได้อนุญาตให้จ้างช่วงงานแต่บางส่วนดังกล่าวนั้น ไม่เป็นเหตุให้ผู้รับจ้างหลุดพ้นจากความรับผิดหรือพันธะหน้าที่ตามสัญญานี้ และผู้รับจ้างจะยังคงต้องรับผิดในความผิดและประมาณเลินเล่อของผู้รับจ้างช่วง หรือของตัวแทนหรือลูกจ้างของผู้รับจ้างช่วงนั้นทุกประการ การณีผู้รับจ้างช่วงงานแต่บางส่วน โดยฝ่าฝืนความในวรรคหนึ่ง ผู้รับจ้างต้องชำระค่าปรับให้แก่ผู้ว่าจ้างเป็นจำนวนเงินในอัตราร้อยละ 10 (สิบ) ของวงเงินของงานที่จ้างช่วงตามสัญญา ทั้งนี้ ไม่ตัดสิทธิผู้ว่าจ้างในการบอกเลิกสัญญา | H92: เลือกปริ้น
B93: 8 | C93: การประเมินผลการปฏิบัติงานของผู้ประกอบการ หน่วยงานของรัฐสามารถนำผลการปฏิบัติงานแล้วเสร็จตามสัญญา หรือข้อตกลงของคู่สัญญา เพื่อนำมาประเมินผลการปฏิบัติงานของผู้ประกอบการ | H93: เลือกปริ้น
C94: ลงชื่อ………………………………………………….ผู้สั่งจ้าง | E94: ลงชื่อ……………………………………….ผู้รับใบสั่งจ้าง | H94: เลือกปริ้น
C95: =DATABASE!C7 -> นางจุรีพร บัวลอย | E95: =DATABASE!D19 -> ......................................................... | H95: เลือกปริ้น
C96: หัวหน้าเจ้าหน้าที่ | E96: ผู้รับจ้าง | H96: เลือกปริ้น
B97: วันที่ | C97: =F5 -> 2562-08-22 | E97: วันที่ | F97: =J5 -> 2562-08-23 | H97: เลือกปริ้น
B98: =DATABASE!C25 -> - | H98: เลือกปริ้น
B99: =DATABASE!C26 -> - | H99: เลือกปริ้น

Sheet ขอบเขตงาน(น2) (hidden)
B1: ขอบเขตของงานที่ให้ Care giver ทำ
B2: ผู้ช่วยเหลือดูแลผู้สูงอายุที่มีภาวะพึ่งพิง (Care giver)
C3: หมายถึง บุคคลที่ผ่านการอบรมตามหลักสูตรที่คณะอนุกรรมการ LTC หรือคณะอนุกรรมการอื่นภายใต้ คณะกรรมการ
B4: หลักประกันสุขภาพแห่งชาติ หรือ สปสช. เห็นชอบ
C5: ขอบเขต/บทบาทหน้าที่ของ Care giver
C6: ดูแลผู้สูงอายุตามแผนการดูแลที่ได้รับมอบหมาย ได้แก่
D7: 1. ดูแลกิจวัตรประจำวันของผู้สูงอายุ เช่น การรับประทานอาหาร การนอนหลับพักผ่อน การเคลื่อนย้าย
B8: การขับถ่าย ให้ถูกสุขลักษณะปลอดภัยเหมาะสมกับวัยของผู้สูงอายุ
D9: 2. สังเกตพฤติกรรมการเปลี่ยนแปลงต่างๆ ของผู้สูงอายุ รวมทั้งเรื่องสุขภาพของผู้สูงอายุ และต้อง รายงานให้
B10: ญาติของผู้สูงอายุทราบ
D11: 3. ส่งเสริมสุขภาพของผู้สูงอายุทุกด้านตลอดจนดูแลสภาพแวดล้อม ให้ปลอดภัยถูกสุขลักษณะเอื้อต่อการ
B12: ส่งเสริมสุขภาพของผู้สูงอายุ
D13: 4. เขียนรายงานการปฏิบัติงานเสนอต่อหน่วยงานต้นสังกัด
D14: 5. กรณีที่มีการประกอบอาหารให้ผู้สูงอายุต้องดำเนินการเตรียม ปรุง ประกอบอาหาร พร้อมทั้งดูแล เครื่องมือ
B15: เครื่องใช้ในการปรุงประกอบอาหารให้สะอาด และถูกสุขลักษณะในทุกขั้นตอนและล้างมือ ให้สะอาดอยู่เสมอ
D16: 6. จัดการสิ่งปฏิกูลและมูลฝอยที่เกิดจากการดูแลผู้สูงอายุอย่างถูกต้อง โดยทิ้งลงในภาชนะรองรับที่ถูก
B17: หลักสุขาภิบาล และระวังป้องกันไม่ให้เกิดการปนเปื้อนกับอาหารและเกิดการแพร่กระจายของเชื้อ โรค หรือก่อให้เกิดเหตุรำคาญ
B18: ต่อบ้านเรือนใกล้เคียง
D19: 7. ส่งต่อผู้สูงอายุกรณีที่พบว่ามีเหตุฉุกเฉิน หรือการเจ็บป่วย หรือบาดเจ็บเกิดขึ้นกับผู้สูงอายุตามระบบ การส่งต่อ
B20: และวิธีการอย่างถูกต้อง
D21: 8. จัดทำรายงานผลการดูแลผู้สูงอายุรายเดือน เพื่อรายงานต่อผู้จัดการระบบฯ
C22: คุณสมบัติของผู้เข้ารับการอบรมเป็น Care giver
D23: เป็นไปตามประกาศสำนักงานหลักประกันสุขภาพแห่งชาติกำหนด
C24: การฝึกอบรม
D25: 1. อย่างน้อย 70 ชั่วโมง
D26: 2. อบรมโดยหน่วยงานต่างๆ ที่เกี่ยวข้อง เช่น กรมอนามัย วิทยาลัย มหาวิทยาลัย สำนักงานสาธารณสุขจังหวัด
B27: โรงพยาบาล หรือหน่วยงานอื่นๆ ที่เกี่ยวข้อง โดยใช้หลักสูตรของกรมอนามัย กระทรวง สาธารณสุข หรือเทียบเท่า

Sheet รายงานข้อ 16
B1: บันทึกข้อความ
B2: ส่วนราชการ | D2: =DATABASE!C4&" "&DATABASE!D4 -> สำนักงานสาธารณสุขอำเภอหนองหงส์ อำเภอหนองหงส์ จังหวัดบุรีรัมย์
B3: ที่ | C3: =DATABASE!C3 -> บร 1332.1/ | E3: 325 | G3: วันที่ | H3: 2562-03-21
B4: เรื่อง | C4: =รายงานจัดจ้าง!C4 -> ถ่ายเอกสารงานราชการและเข้าเล่ม
B5: เรียน | C5: =รายงานจัดจ้าง!C5 -> ผู้ว่าราชการจังหวัดบุรีรัมย์ (โดยสาธารณสุขอำเภอหนองหงส์ปฏิบัติราชการแทน)
D6: เรื่องเดิม
D7: ="ตามบันทึกรายงานขอซื้อ/ขอจ้าง "&รายงานจัดจ้าง!B3&" "&รายงานจัดจ้าง!C3&" "&รายงานจัดจ้าง!E3&" "&" ลงวันที่" -> ตามบันทึกรายงานขอซื้อ/ขอจ้าง ที่ บร 1332.1/ 1016 ลงวันที่ | H7: =รายงานจัดจ้าง!H3 -> 2562-08-22
B8: ="ได้อนุมัติให้จัดซื้อ"&'เห็นชอบรวม(น1)'!C5&" "&" โดยวิธีเฉพาะเจาะจง กับร้าน "&DATABASE!C19 -> ได้อนุมัติให้จัดซื้อถ่ายเอกสารงานราชการและเข้าเล่ม โดยวิธีเฉพาะเจาะจง กับร้าน หจก. เอกสารซีพี
B9: ="รวมเป็นเงินทั้งสิ้น "&ใบสั่งจ้าง!G82&" บาท "&"("&BAHTTEXT(ใบสั่งจ้าง!G82)&") "&" "&"โดยเบิกจ่ายจากเงินบำรุง"&DATABASE!C15 -> รวมเป็นเงินทั้งสิ้น 2000 บาท (สองพันบาทถ้วน) โดยเบิกจ่ายจากเงินบำรุงโรงพยาบาลส่งเสริมสุขภาพตำบลบ้านกระเบื้องน้อย
D10: ข้อเท็จจริง
B11: ="ร้าน "&DATABASE!C19&" ได้ส่งมอบ"&'เห็นชอบรวม(น1)'!C5&" เมื่อวันที่ "&'ใบส่งของ มอบ'!N1&"/"&'ใบส่งของ มอบ'!O1&"/"&'ใบส่งของ มอบ'!P1&" ตามเอกสาร เลขที่..............................เล่มที่.......................................ลงวันที่...........................................................จำนวนเงิน "&ใบสั่งจ้าง!G82&" บาท "&"("&BAHTTEXT(ใบสั่งจ้าง!G82)&")"&" และผู้ตรวจรับพัสดุ ได้ทำการตรวจรับไว้เป็นการถูกต้อง ครบถ้วน ตามเงื่อนไข ดังรายละเอียดในใบสั่งซื้อ/จ้าง เลขที่"&ใบสั่งจ้าง!F4&" ลงวันที่ "&ใบสั่งจ้าง!K3&"/"&ใบสั่งจ้าง!L3&"/"&ใบสั่งจ้าง!M3&" และผู้ตรวจรับพัสดุได้ทำการตรวจรับเรียบร้อยแล้วตามใบตรวจรับการจัดซื้อ ที่แนบมาพร้อมนี้" -> ร้าน หจก. เอกสารซีพี ได้ส่งมอบถ่ายเอกสารงานราชการและเข้าเล่ม เมื่อวันที่ 30/9/2562 ตามเอกสาร เลขที่..............................เล่มที่.......................................ลงวันที่...........................................................จำนวนเงิน 2000 บาท (สองพันบาทถ้วน) และผู้ตรวจรับพัสดุ ได้ทำการตรวจรับไว้เป็นการถูกต้อง ครบถ้วน ตามเงื่อนไข ดังรายละเอียดในใบสั่งซื้อ/จ้าง เลขที่710/2562 ลงวันที่ 22/8/2562 และผู้ตรวจรับพัสดุได้ทำการตรวจรับเรียบร้อยแล้วตามใบตรวจรับการจัดซื้อ ที่แนบมาพร้อมนี้
D12: ข้อกฎหมายและข้อระเบียบ
B13: ระเบียบกระทรวงการคลังว่าด้วยการจัดซื้อจัดจ้างและการบริหารพัสดุภาครัฐ พ.ศ. 2560 ข้อ 16 เมื่อสิ้นสุดกระบวนการจัดซื้อจัดจ้างในแต่ละโครงการ ให้หน่วยงานของรัฐจัดให้มีการบันทึกรายงานผลการพิจารณา รายละเอียดวิธีการและขั้นตอนการจัดซื้อจัดจ้างพร้อมทั้งเอกสารหลักฐานประกอบ ตามรายการดังต่อไปนี้
C14: 1 | D14: รายงานขอซื้อ/ขอจ้าง
C15: 2 | D15: ใบสั่งจ้าง
B16: ลงวันที่ 5 ตุลาคม 2560 เรื่อง แนวทางการบริหารจัดการโครงการพัฒนาระบบบริการดูแลระยะยาวด้านสาธารณสุขสำหรับ
B17: ผู้สูงอายุที่มีภาวะพึ่งพิง (Long Term Care) (เอกสารแนบ 4)
C18: 3 | D18: ใบตรวจรับการจัดจ้าง
C19: 4 | D19: แบบแสดงความบริสุทธิ์ใจในการจัดซื้อจัดจ้างของหน่วยงาน
C20: 5 | D20: บันทึกรายงานผลการตรวจรับพัสดุ
D21: ข้อพิจารณาและข้อเสนอ
D22: เพื่อให้การดำเนินการเป็นไปตามระเบียบกระทรวงการคลังว่าด้วยการจัดซื้อจัดจ้างและการบริหารพัสดุภาครัฐ พ.ศ. 2560
D23: 2 | E23: =[1]DATABASE!C18 -> 0 | G23: =[1]DATABASE!D18 -> 0 | K23: กรรมการ
D24: 3 | E24: =[1]DATABASE!C19 -> 0 | G24: =[1]DATABASE!D19 -> 0 | K24: กรรมการ
B25: ="ข้อ 16 จึงขอรายงานผลการพิจารณารายละเอียด วิธีการและขั้นตอนการจัดซื้อ"&'เห็นชอบรวม(น1)'!C5&" จำนวนเงิน "&ใบสั่งจ้าง!G82&" บาท "&"("&BAHTTEXT(ใบสั่งจ้าง!G82)&") "&" "&"ดังรายละเอียดที่แนบมาพร้อมนี้ " -> ข้อ 16 จึงขอรายงานผลการพิจารณารายละเอียด วิธีการและขั้นตอนการจัดซื้อถ่ายเอกสารงานราชการและเข้าเล่ม จำนวนเงิน 2000 บาท (สองพันบาทถ้วน) ดังรายละเอียดที่แนบมาพร้อมนี้
D26: จึงเรียนมาเพื่อโปรดพิจารณา
F27: ลงชื่อ | G27: …………..............……………………………เจ้าหน้าที่
G28: =DATABASE!C11 -> นางวรรณเพ็ญ วศินไพบูลย์วงศ์
G29: =DATABASE!D11 -> เจ้าพนักงานสาธารณสุข
B30: เรียน | C30: =C5 -> ผู้ว่าราชการจังหวัดบุรีรัมย์ (โดยสาธารณสุขอำเภอหนองหงส์ปฏิบัติราชการแทน)
D31: - การจัดจ้างครั้งนี้เป็นไปตามวิธีการและขั้นตอนตามระเบียบฯ | I31: o | J31: ทราบ / ดำเนินการ
D32: ข้อ 16 ทุกประการ จึงเรียนมาเพื่อโปรดทราบ
D34: =DATABASE!C7 -> นางจุรีพร บัวลอย | H34: =DATABASE!C6 -> นายประหยัด นงประโคน
B35: =DATABASE!D7 -> นักวิชาการสาธารณสุข ชำนาญการ | H35: =DATABASE!D6 -> สาธารณสุขอำเภอหนองหงส์
B36: หัวหน้าเจ้าหน้าที่ | J36: ปฏิบัติราชการแทนผู้ว่าราชการจังหวัดบุรีรัมย์

Sheet ใบส่งของ มอบ
B1: ใบส่งมอบงานจ้าง | N1: =DAY(G4) -> 30 | O1: =MONTH(G4) -> 9 | P1: =YEAR(G4) -> 2562
B2: =DATABASE!C19 -> หจก. เอกสารซีพี
B3: =DATABASE!C20&" "&DATABASE!D20 -> 95/10-11 ถ.อินจันทร์รรงค์ ต.ในเมือง อ.เมือง จ.บุรีรัมย์ โทรศัพท์ 0 4461 4005
F4: วันที่ | G4: 2562-09-30
B5: เรื่อง | C5: ส่งมอบงานจ้าง และขอเบิกเงิน
B6: เรียน | C6: =DATABASE!D14 -> ผู้อำนวยการโรงพยาบาลส่งเสริมสุขภาพตำบลบ้านกระเบื้องน้อย
B7: อ้างถึง | C7: =ใบสั่งจ้าง!E4&" "&ใบสั่งจ้าง!F4&" ลงวันที่" -> ใบสั่งจ้าง เลขที่ 710/2562 ลงวันที่ | F7: =ใบสั่งจ้าง!F5 -> 2562-08-22
D8: =DATABASE!C4&" "&DATABASE!D4 -> สำนักงานสาธารณสุขอำเภอหนองหงส์ อำเภอหนองหงส์ จังหวัดบุรีรัมย์
B9: ="ได้จ้าง "&" "&'เห็นชอบรวม(น1)'!C5&" จาก "&DATABASE!C19&" "&DATABASE!B21&" "&DATABASE!C21 -> ได้จ้าง ถ่ายเอกสารงานราชการและเข้าเล่ม จาก หจก. เอกสารซีพี เลขผู้เสียภาษี 313555000044
B10: =รายงานจัดจ้าง!D21&" นั้น" -> กำหนดเวลาการส่งมอบพัสดุหรือให้งานแล้วเสร็จภายใน 30 วันทำการ นับจากวันที่ได้รับใบสั่งจ้าง นั้น
D11: ="บัดนี้ ข้าพเจ้าได้ปฏิบัติหน้าที่ตามที่ได้รับมอบหมาย ตามข้อ"&CG!$H$10&" "&VLOOKUP(รายงานจัดจ้าง!$A$1,CG!$A$11:$H$40,8,0)&" "&CG!I10 -> บัดนี้ ข้าพเจ้าได้ปฏิบัติหน้าที่ตามที่ได้รับมอบหมาย ตามข้อตกลงจ้าง ที่ 46/2560 ลงวันที่
B12: =F7 -> 2562-08-22 | E12: ได้ดำเนินการเสร็จเรียบร้อยแล้ว จึงขอส่งมอบงานดังกล่าว ให้ผู้ตรวจรับพัสดุ ได้โปรด
B13: ทำการตรวจรับงานดังกล่าว หากเห็นว่าถูกต้องเรียบร้อย ตามข้อตกลงแล้ว กรุณาเบิกจ่าย เป็นเงินทั้งสิ้น
B14: =ใบสั่งจ้าง!G82 -> 2000 | D14: ="บาท "&" "&"("&BAHTTEXT(B14)&")" -> บาท (สองพันบาทถ้วน)
D15: จีงเรียนมาเพื่อโปรดทราบ และพิจารณาดำเนินการต่อไป
G16: ขอแสดงความนับถือ
F18: =DATABASE!D19 -> .........................................................
B19: เรียน | C19: =DATABASE!D14 -> ผู้อำนวยการโรงพยาบาลส่งเสริมสุขภาพตำบลบ้านกระเบื้องน้อย
C20: - เพื่อโปรดทราบ/เห็นควรแจ้งคณะกรรมการตรวจรับ
G21: o | H21: ทราบ / ดำเนินการ
C23: =DATABASE!C12 -> นางสาวกนกรัตน์ พรมมา
C24: =DATABASE!D12 -> เจ้าพนักงานสาธารณสุข | H24: =DATABASE!C14 -> นายดำรงค์ สีระสูงเนิน
F25: =DATABASE!D14 -> ผู้อำนวยการโรงพยาบาลส่งเสริมสุขภาพตำบลบ้านกระเบื้องน้อย

Sheet ใบตรวจรับ
B1: ใบตรวจรับการจ้าง
B2: =DATABASE!C15 -> โรงพยาบาลส่งเสริมสุขภาพตำบลบ้านกระเบื้องน้อย
F3: วันที่ | G3: ='ใบส่งของ มอบ'!G4:J4 -> 2562-09-30
C4: ="ตามข้อ "&ใบสั่งจ้าง!E4&" "&ใบสั่งจ้าง!F4&" ลงวันที่" -> ตามข้อ ใบสั่งจ้าง เลขที่ 710/2562 ลงวันที่ | G4: =ใบสั่งจ้าง!F5 -> 2562-08-22
B5: =DATABASE!C4&" "&DATABASE!D15&" ได้ตกลงจ้าง "&'เห็นชอบรวม(น1)'!C5&" ซึ่ง "&DATABASE!C19&" เลขที่ "&DATABASE!C20&" โดยวิธีเฉพาะเจาะจง ผู้รับจ้าง ได้ส่งมอบงานจ้างตามหนังสือส่งมอบงานจ้าง (เอกสารแนบ)" -> สำนักงานสาธารณสุขอำเภอหนองหงส์ อำเภอหนองหงส์ จังหวัดบุรีรัมย์ ได้ตกลงจ้าง ถ่ายเอกสารงานราชการและเข้าเล่ม ซึ่ง หจก. เอกสารซีพี เลขที่ 95/10-11 ถ.อินจันทร์รรงค์ ต.ในเมือง อ.เมือง จ.บุรีรัมย์ โดยวิธีเฉพาะเจาะจง ผู้รับจ้าง ได้ส่งมอบงานจ้างตามหนังสือส่งมอบงานจ้าง (เอกสารแนบ)
B6: ="เป็นจำนวนเงินทั้งสิ้น "&'ใบส่งของ มอบ'!B14&" "&'ใบส่งของ มอบ'!D14 -> เป็นจำนวนเงินทั้งสิ้น 2000 บาท (สองพันบาทถ้วน)
C7: ผู้ตรวจรับพัสดุ ได้ตรวจรับพัสดุ ผลปรากฎว่า
C8: ผลการตรวจรับ
C9: o | D9: ถูกต้อง
D10: o | E10: ครบถ้วนตามสัญญา
D11: o | E11: ไม่ครบถ้วนตามสัญญา
C12: ค่าปรับ
C13: o | D13: มีค่าปรับ
C14: o | D14: ไม่มีค่าปรับ
C15: (ลงชื่อ).................................................... | F15: =DATABASE!D16 -> เจ้าพนักงานสาธารณสุข อาวุโส | I15: =IF(DATABASE!C17="","ผู้ตรวจรับพัสดุ","ประธานกรรมการ") -> ผู้ตรวจรับพัสดุ | K15: เลือกปริ้น
D16: =DATABASE!C16 -> นายสมยศ นงประโคน | K16: เลือกปริ้น
C17: =IF(DATABASE!C17="","","(ลงชื่อ)....................................................") ->  | F17: =IF(DATABASE!C17="","",DATABASE!D17) ->  | I17: =IF(DATABASE!C17="","","กรรมการ") ->  | K17: =IF(DATABASE!C17="","","เลือกปริ้น") -> 
D18: =IF(DATABASE!C17="","",DATABASE!C17) ->  | K18: =IF(DATABASE!C17="","","เลือกปริ้น") -> 
C19: =IF(DATABASE!C18="","","(ลงชื่อ)....................................................") ->  | F19: =IF(DATABASE!C18="","",DATABASE!D18) ->  | I19: =IF(DATABASE!C18="","","กรรมการ") ->  | K19: =IF(DATABASE!C18="","","เลือกปริ้น") -> 
D20: =IF(DATABASE!C18="","",DATABASE!C18) ->  | K20: =IF(DATABASE!C18="","","เลือกปริ้น") -> 
B21: เรียน ผู้ว่าราชการจังหวัดบุรีรัมย์ โดยสาธารณสุขอำเภอปกิบัติราชการแทน
C22: - เพื่อโปรดทราบ
C23: - ผู้ตรวจรับพัสดุ ได้ทำการตรวจรับพัสดุ
C24: และรายงานผลให้ทราบ ตามระเบียบฯ ข้อ 16(8)
C25: - จึงเรียนมาเพื่อโปรดทราบ | H25: ทราบ / ดำเนินการ
D27: นายชัยณรงค์ สมสะอาด | G27: =DATABASE!C6 -> นายประหยัด นงประโคน
D28: นักวิชาการสาธารณสุข ชำนาญการ | H28: =DATABASE!D6 -> สาธารณสุขอำเภอหนองหงส์
H29: ปฏิบัติราชการแทนผู้ว่าราชการจังหวัดบุรีรัมย์
C30: หมายเหตุ : | D30: =ใบสั่งจ้าง!B98 -> -
D31: =ใบสั่งจ้าง!B99 -> -
D32: เลขคุมตรวจรับ..............................................................

Sheet ใบสำคัญรับเงิน (hidden)
B1: แบบใบสำคัญรับเงิน
B2: =DATABASE!C15 -> โรงพยาบาลส่งเสริมสุขภาพตำบลบ้านกระเบื้องน้อย
B4: ใบสำคัญรับเงิน
F6: วันที่ | G6: =ใบสั่งจ้าง!J6 -> 2561-01-29
C7: ข้าพเจ้า | D7: =VLOOKUP(รายงานจัดจ้าง!$A$1,CG!$A$11:$B$40,2,0) -> นางน้อย ปานเพ็ชร | G7: บ้านเลขที่ | H7: =VLOOKUP(รายงานจัดจ้าง!$A$1,CG!$A$11:$F$40,3,0) -> 133 | I7: หมู่ที่ | J7: =VLOOKUP(รายงานจัดจ้าง!$A$1,CG!$A$11:$F$40,4,0) -> 6
B8: ตำบล | C8: =VLOOKUP(รายงานจัดจ้าง!$A$1,CG!$A$11:$U$40,12,0) -> หนองชัยศรี | E8: อำเภอ. | F8: =VLOOKUP(รายงานจัดจ้าง!$A$1,CG!$A$11:$U$40,13,0) -> หนองหงส์ | H8: จังหวัด | I8: =VLOOKUP(รายงานจัดจ้าง!$A$1,CG!$A$11:$U$40,14,0) -> บุรีรัมย์
B9: ได้รับเงินจาก | C9: =B2 -> โรงพยาบาลส่งเสริมสุขภาพตำบลบ้านกระเบื้องน้อย | I9: ดังมีรายการดังต่อไปนี้
B10: รายการ | I10: จำนวนเงิน (บาท)
B11: =ใบสั่งจ้าง!C14 -> ค่าถ่ายเอกสารสี และขาวดำ จำนวน 98 หน้า พร้อมเข้าเล่ม(ส่งเขต) | I11: =VLOOKUP(รายงานจัดจ้าง!$A$1,CG!$A$11:$S$40,6,0) -> 600
B12: =ใบสั่งจ้าง!C16 -> ค่าถ่ายเอกสารขาวดำ จำนวน 98 หน้า พร้อมเข้าเล่ม(นำเสนอ สสจ.)
B24: รวมเป็นเงิน | I24: =SUM(I11:J23) -> 600
B26: (ตัวอักษร) | C26: ="("&BAHTTEXT(I24)&")" -> (หกร้อยบาทถ้วน)
F27: (ลงชื่อ)..............................................................ผู้รับเงิน
F28: =VLOOKUP(รายงานจัดจ้าง!$A$1,CG!$A$11:$B$40,2,0) -> นางน้อย ปานเพ็ชร
F29: (ลงชื่อ)..............................................................ผู้จ่ายเงิน
F30: =DATABASE!C12 -> นางสาวกนกรัตน์ พรมมา

Sheet บริสุทธิ์
B1: แบบแสดงความบริสุทธิ์ใจในการจัดซื้อจัดจ้างของหน่วยงาน (วงเงินเล็กน้อยไม่เกิน 100,000 บาท)
B2: ในการเปิดเผยข้อมูลความขัดแย้งทางผลประโยชน์ของหัวหน้าเจ้าหน้าที่
B3: เจ้าหน้าที่ และผู้ตรวจรับพัสดุ
B4: *********************************
B5: ข้าพเจ้า | C5: =DATABASE!C7 -> นางจุรีพร บัวลอย | F5: หัวหน้าเจ้าหน้าที่
B6: ข้าพเจ้า | C6: =DATABASE!C11 -> นางวรรณเพ็ญ วศินไพบูลย์วงศ์ | F6: เจ้าหน้าที่ | G6: เลือกปริ้น
B7: ข้าพเจ้า | C7: =DATABASE!C16 -> นายสมยศ นงประโคน | F7: =IF(DATABASE!C17="",DATABASE!B16,"ประธานกรรมการ") -> ประธานกรรมการ | G7: เลือกปริ้น
B8: =IF(DATABASE!C17="","","ข้าพจ้า") ->  | C8: =IF(DATABASE!C17="","",DATABASE!C17) ->  | F8: =IF(DATABASE!C17="","","กรรมการ") ->  | G8: =IF(DATABASE!C17="","","เลือกปริ้น") -> 
B9: =IF(DATABASE!C18="","","ข้าพจ้า") ->  | C9: =IF(DATABASE!C18="","",DATABASE!C18) ->  | F9: =IF(DATABASE!C18="","","กรรมการ") ->  | G9: =IF(DATABASE!C18="","","เลือกปริ้น") -> 
B10: ขอให้คำรับรองว่าไม่มีความเกี่ยวข้องหรือมีส่วนได้ส่วนเสียไม่ว่าโดยตรงหรือโดยอ้อม หรือผลประโยชน์ใดๆ ที่ก่อให้เกิดความขัดแย้งทางผลประโยชน์กับผู้ขาย ผู้รับจ้าง ผู้เสนองาน หรือผู้ชนะประมูล หรือผู้มีส่วนเกี่ยวข้องที่เข้ามามีนิติสัมพันธ์ และวางตัวเป็นกลางในการดำเนินการเกี่ยวกับการพัสดุ ปฏิบัติหน้าที่ด้วยจิตสำนึก ด้วยความโปร่งใส สามารถให้มีผู้เกี่ยวข้องตรวจสอบได้ทุกเวลา มุ่งประโยชน์ส่วนรวมเป็นสำคัญ ตามที่ระบุไว้ในประกาศสำนักงานปลัดกระทรวงสาธารณสุขว่าด้วยแนวทางในการปฏิบัติในหน่วยงานด้าน การจัดซื้อจัดจ้าง พ.ศ. 2560 | G10: เลือกปริ้น
B11: หากปรากฏว่าเกิดความขัดแย้งทางผลประโยชน์ระหว่างข้าพเจ้ากับผู้ขาย ผู้รับจ้าง ผู้เสนองาน หรือ ผู้ชนะประมูล หรือผู้มีส่วนเกี่ยวข้องที่เข้ามามีนิติสัมพันธ์ ข้าพเจ้าจะรายงานให้ทราบโดยทันที | G11: เลือกปริ้น
G12: เลือกปริ้น
C13: ลงนาม.................................................................... | F13: ลงนาม.................................................................... | G13: เลือกปริ้น
C14: =C5 -> นางจุรีพร บัวลอย | F14: =C6 -> นางวรรณเพ็ญ วศินไพบูลย์วงศ์ | G14: เลือกปริ้น
C15: =F5 -> หัวหน้าเจ้าหน้าที่ | F15: =F6 -> เจ้าหน้าที่ | G15: เลือกปริ้น
C16: ลงนาม.................................................................... | F16: =IF(DATABASE!C17="","","ลงนาม....................................................................") ->  | G16: เลือกปริ้น
C17: =C7 -> นายสมยศ นงประโคน | F17: =IF(DATABASE!C17="","",DATABASE!C17) ->  | G17: เลือกปริ้น
C18: =F7 -> ประธานกรรมการ | F18: =F8 ->  | G18: เลือกปริ้น
C19: =IF(DATABASE!C18="","","ลงนาม....................................................................") ->  | G19: =IF(DATABASE!C18="","","เลือกปริ้น") -> 
C20: =IF(DATABASE!C18="","",DATABASE!C18) ->  | G20: =IF(DATABASE!C18="","","เลือกปริ้น") -> 
C21: =IF(DATABASE!C18="","","กรรมการ") ->  | G21: =IF(DATABASE!C18="","","เลือกปริ้น") -> 
C23: ='เห็นชอบรวม(น1)'!C5 -> ถ่ายเอกสารงานราชการและเข้าเล่ม
C24: =รายงานจัดจ้าง!D18 -> วงเงินที่จะจ้าง โดยขอเบิกเงินบำรุงของหน่วยงาน สังกัด โรงพยาบาลส่งเสริมสุขภาพตำบลบ้านกระเบื้องน้อย
C25: ="ตามข้อตกลงจ้าง เลขที่ "&VLOOKUP(รายงานจัดจ้าง!$A$1,CG!$A$11:$I$40,8,0)&" ลงวันที่" -> ตามข้อตกลงจ้าง เลขที่ 46/2560 ลงวันที่ | D25: =VLOOKUP(รายงานจัดจ้าง!$A$1,CG!$A$11:$I$40,9) -> 2560-12-01

Sheet เบิกจ่ายเงินรวม
B1: บันทึกข้อความ
B2: ส่วนราชการ | E2: =DATABASE!C15&" "&DATABASE!D15 -> โรงพยาบาลส่งเสริมสุขภาพตำบลบ้านกระเบื้องน้อย อำเภอหนองหงส์ จังหวัดบุรีรัมย์
B3: ที่ | D3: =DATABASE!C13 -> บร 1332.1.4/ | F3: . | H3: วันที่ | I3: 2562-10-01
B4: เรื่อง | D4: ='เห็นชอบรวม(น1)'!C5 -> ถ่ายเอกสารงานราชการและเข้าเล่ม
B5: เรียน | D5: =DATABASE!D14 -> ผู้อำนวยการโรงพยาบาลส่งเสริมสุขภาพตำบลบ้านกระเบื้องน้อย
E6: =DATABASE!C15&" "&DATABASE!D15 -> โรงพยาบาลส่งเสริมสุขภาพตำบลบ้านกระเบื้องน้อย อำเภอหนองหงส์ จังหวัดบุรีรัมย์
B7: ='เห็นชอบรวม(น1)'!C5 -> ถ่ายเอกสารงานราชการและเข้าเล่ม | I7: =ใบสั่งจ้าง!G82 -> 2000 | J7: ="บาท "&"("&BAHTTEXT(I7)&")" -> บาท (สองพันบาทถ้วน)
E8: ผู้ตรวจรับพัสดุ ได้ตรวจรับถูกต้องแล้ว ดังเอกสารแนบการเบิกจ่าย ดังนี้ | M8: ลงเลขเอกสาร
E9: 1. ขออนุมัติจัดจ้าง | J9: =IF(E9="","","จำนวน") -> จำนวน | K9: =IF(M9=""," - ฉบับ",M9&" ฉบับ") -> 1 ฉบับ | M9: 1
E10: 2. ใบเสนอราคา | J10: =IF(E10="","","จำนวน") -> จำนวน | K10: 1 ฉบับ | M10: 1
E11: 3. รายงานขอจ้าง | J11: =IF(E11="","","จำนวน") -> จำนวน | K11: 1 ฉบับ | M11: 1
E12: 4. คำสั่งจังหวัดบุรีรัมย์ เรื่อง แต่งตั้งคณะกรรมการตรวจรับพัสดุ | J12: =IF(E12="","","จำนวน") -> จำนวน | K12: 0 ฉบับ | M12: 0
E13: 5. รายงานผลการพิจารณาและขออนุมัติสั่งซื้อ | J13: =IF(E13="","","จำนวน") -> จำนวน | K13: 0 ฉบับ | M13: 0
E14: 6. ประกาศจังหวัดบุรีรัมย์ | J14: จำนวน | K14: 0 ฉบับ | M14: 0
E15: 4. ใบสั่งจ้าง | J15: จำนวน | K15: 1 ฉบับ | M15: 1
E16: 5. หนังสือส่งมอบงานจ้าง | J16: จำนวน | K16: 1 ฉบับ | M16: 1
E17: 5. ใบตรวจรับการจ้าง | J17: จำนวน | K17: 1 ฉบับ | M17: 1
E18: 10. แบบแสดงความบริสุทธ์ใจในการซื้อ | J18: จำนวน | K18: 1 ฉบับ | M18: 1
E19: 6. ใบเสร็จรับเงิน | J19: จำนวน | K19: 1 ฉบับ | M19: 1
E20: โดยนายดำรงค์ สีระสูงเนิน ได้จ่ายเงินสดไปพรางก่อนแล้ว ตามใบเร็จรับเงินเล่มที่..........................เลขที่.................... | K20: 1 ฉบับ | M20: 1
B21: ลงวันที่...................................................จำนวนเงิน | H21: =I7 -> 2000 | I21: ="บาท "&"("&BAHTTEXT(H21)&")" -> บาท (สองพันบาทถ้วน) | K21: 1 ฉบับ | M21: 1
E22: จึงเรียนมาเพื่อนโปรดดำเนินการเบิกจ่ายเงินให้ นายดำรงค์ สีระสูงเนิน ต่อไป | M22: 1
M23: 1
H24: =DATABASE!C12 -> นางสาวกนกรัตน์ พรมมา | M24: 1
H25: =DATABASE!D12 -> เจ้าพนักงานสาธารณสุข | M25: 1
B26: =B5&" "&D5 -> เรียน ผู้อำนวยการโรงพยาบาลส่งเสริมสุขภาพตำบลบ้านกระเบื้องน้อย | M26: 1
D27: - เห็นควรอนุมัติ | H27: คำสั่ง | I27: =D5 -> ผู้อำนวยการโรงพยาบาลส่งเสริมสุขภาพตำบลบ้านกระเบื้องน้อย | M27: 1
H28: ¨ | I28: อนุมัติ | J28: ¨ ไม่อนุมัติ เนื่องจาก......................... | M28: 1
E29: =DATABASE!C12 -> นางสาวกนกรัตน์ พรมมา | M29: 1
E30: =DATABASE!D12 -> เจ้าพนักงานสาธารณสุข | I30: =DATABASE!C14 -> นายดำรงค์ สีระสูงเนิน | M30: 1
I31: =DATABASE!D14 -> ผู้อำนวยการโรงพยาบาลส่งเสริมสุขภาพตำบลบ้านกระเบื้องน้อย | M31: 1
I32: =DATABASE!C8 -> ปฏิบัติตามคำสั่ง สป. ที่ 2999/2559 ลว. 30 กันยายน 2559 | M32: 1
